Workbook

Sheet User's Guide
D1: Last updated: 8/27/2014
C2: Tanzania: Mafia Island Airport
B8: ERR Version | C8: Original ERR | D8: Closeout ERR
B9: Date of ERR | C9: 2007-08-24 | D9: 2014-08-27
B10: Amount of MCC funds | C10: $372.8 million total for Transport Project | D10: $14.1 million
B11: Project Description | C11: Access to Mafia Island is limited by the poor condition of its airport and lack of feasible alternative transportation options. Resurfacing the airport’s runway and improving other airport facilities will allow for easier, more efficient, and safer access to the island, resulting in increased tourist and business travel to and from the mainland and additional jobs on the island. | D11: Access to Mafia Island is limited by the poor condition of its airport and lack of feasible alternative transportation options. Resurfacing the airport’s runway and improving other airport facilities is expected to decrease aircraft operating costs and reduce the chance of aviation incidents during takeoff and landing. These changes may lead to less expensive airfare to Mafia Island, resulting in an increased number of visitors.
B12: Benefit streams included in ERR | C12: Increased tourist and business travel | D12: Aircraft operating cost savings
D13: Flight safety improvements
D14: Decreased operating costs
B15: Costs included in ERR (not borne by MCC) | C15: Operations and maintenance | D15: Operations and maintenance
B16: ERR estimations and time horizon | C16: 17.5% over 20 years | D16: 1.2% over 20 years
B20: Table of Contents
B21: Activity Description
B22: One should read this sheet first, as it offers a summary of the project, a list of components, and states the economic rationale for the project.
B24: ERR & Sensitivity Analysis
B25: This worksheet highlights key assumptions and summarizes how the ERR may change due to varying costs and benefits.
B27: Assumptions
B28: Lists the financial, economic and logistical assumptions used in the analysis.
B30: ERR
B31: This worksheet presents the aggregated costs and benefits from the project activities and calculates the ERR and NPV.
B33: Costs
B34: Lists the detailed investment costs by year.
B36: Aircraft
B37: Estimates the changes in aircraft operating costs resulting from the improved runway.
B39: Safety
B40: Estimates the reduction in aviation incidents and associated reduction in insurance claims with and without project.
B42: Tourism
B43: Estimates the number of flights, passenger arrivals and visitor spending per year with and without project.
B45: Demand
B46: Contains a demand equation to estimate the change passenger arrivals resulting from a change in the price of airfare.
B48: Arrivals
B49: For reference, a chart that shows the number actual and projected of passenger arrivals from 1999-2030, with and without project.
B51: Sensitivity
B52: Shows the results of a multi-parameter sensitivity analysis using a 10,000 trial Monte Carlo simulation.
B54: Beneficiaries
B55: Estimates the number of project beneficiaries.
B57: Poverty Scorecard
B58: This worksheet shows the cost effectiveness of the project broken out into different poverty categories.
B60: References
B61: Lists documents cited within this workbook.

Sheet Activity description
B2: Tanzania: Transport Sector Project
B4: Mafia Island Airport Rehabilitation
B6: Activity Design History
B8: Original Project
B10: Access to Mafia Island is limited by the poor condition of its airport and lack of feasible alternative transportation options. Resurfacing the airport’s runway and improving other airport facilities will allow for easier, more efficient, and safer access to the island, resulting in increased tourist and business travel to and from the mainland and additional jobs on the island.
B12: Project Changes at Closeout
B14: No substantial changes to the scope of the project, although the cost increased.
B17: Activity Components
B19: MCC Funding will be used to rehabilitate and upgrade the airport on Mafia Island. MCC funding will support:
B20: 1. Refurbishment of the runway, apron and taxiway, establishment of boundary security, refurbishment of the fire station, refurbishment of the terminal building and its water supply, and installation of communication equipment, the scale and scope of which will be contingent on the findings of a strategic environmental assessment.
B21: 2. Project coordination and construction supervision.
B22: 3. Additional environmental assessments, together with any resulting resettlement action plans and environmental management plans.
B23: 4. Capacity building at the Tanzania Airports Authority (“TAA”) related to improvements in strategic maintenance planning and management of routine and periodic maintenance contracts.
B26: Economic Rationale
B28: Original Project ERR
B30: Resurfacing the airport’s runway and improving other airport facilities will allow for easier and cheaper access to the island, resulting in increased tourist and business travel to and from the mainland, which translates to more dollars spent in the local economy for tourism-related businesses. Currently, approximately 12,000 passengers arrive at the airport each year, including 7,000 for leisure and holiday trips and 400 for business travel. The number of visitors to Mafia Island is estimated to increase by 10% post upgrade and then experience an annual growth rate of 6%. Without the upgrade, there is no expected post-project increase and annual growth in number of visitors is estimated at 4%, the local growth rate of GDP for Mafia Island. Travelers stay for an average of three nights and spend approximately US$100 per night. The increase in visitor nights on Mafia Island translates to an increase in annual visitor spending of greater than US$900,000 five years after the rehabilitation and upgrade of the airport.
B31: In addition to increased passenger traffic, other benefit streams were analyzed, but not included in the model. Increases in the volume of freight arriving at and departing from Mafia Island airport were examined along with increased fisheries production. Neither of these benefit streams was included as tourism is likely to be the main sector affected by the activity.
B33: Closeout ERR
B34: The paving and extension of the runway as well as other improvements to airport facilities will decrease aircraft operating costs and increase safety by decreasing the risk of aviation incidents. Paved runways are less susceptible to breaking and to discharging foreign object debris that can cause damage to aircrafts, and the smoother surface should also reduce the frequency and cost of routine maintenance. Because planes undergoing maintenance are also unable to generate revenue, there is an opportunity cost to the airline if a repair cancels a flight. Reduced maintenance from a better runway will keep more planes in the air rather than the shop.
B35: Better runways should also reduce the risk of aviation incidents - aircraft leaving the runway, a blown tire or an accident that destroys the aircraft. Although the risk of an accident at Mafia is small due to the increasing safety of aviation worldwide, the losses from an accident would result in large insurance claims. By reducing the risk of incidents and accidents, the overall cost of insurance claims should also decline.
B36: As an integral part of the original program logic, increased tourism is included as a benefit in this model. However, an extensive literature review could not find any links between improved airside facilities and increased tourism, especially at small regional airports. Sometimes, airport infrastructure investments can increase passenger traffic by reducing airport congestion and wait times, improving the passengers' experience. However, congestion is not an issue at Mafia Airport, so the investment is unlikely to directly drive changes in passenger traffic.
B37: Despite these misgivings, increased tourism was included as a benefit because reduced aircraft operating costs, combined with steadily increasing demand for travel to Mafia, could induce new airlines to enter the market. The resulting competition would reduce the price of airfare, thereby increasing passenger traffic at Mafia Airport. It is unlikely that the full cost savings would filter down to passengers, although we do not know the actual proportion that would. Therefore, this model assumes that all aircraft operating cost savings will be passed on to consumers in the form of reduced airfare, so the estimates should be treated as a generous assumption about the jump in traffic that will take place following completion of the project.
B38: Even with these somewhat generous assumptions, the Mafia Airport Activity does not generate an ERR near the hurdle rate. Ultimately, the unexpected cost increases between project design and completion drove this outcome. Pre-compact appraisals estimated the cost of the activity at $6.6 million, which generated a healthy 17.5% ERR, but the final investment cost was 113% higher ($14.1 million). Inserting the new cost estimates into the old model, even without updating air traffic projections, which now appear overly optimistic, the baseline ERR decreases to 9.5% and a negative NPV. To overcome the high costs of the project, the post-compact jump in passenger traffic will need to be at least 16% over the counterfactual.
B41: Last updated: 8/27/2014

Sheet CB_DATA_ (hidden)
A1: Crystal Ball Data
A3: Workbook Variables | B3: Last Var Column | C3: 0
A4: Name:
A5: Value:
A7: Worksheet Data | B7: Last Data Column Used
B8: 3
A10: Sheet Ref
A11: =CB_DATA_!#REF! ->  | B11: ='ERR & Sensitivity Analysis'!#REF! ->  | C11: =ERR!#REF! -> 
A13: Sheet Guid
A14: 5b6288df-ae25-491a-a03f-cfd9f469befa | B14: cd4badbc-8bce-465f-bc12-48b7760565ef | C14: 1c83c1a3-09ba-4ed9-aede-74c2ea2782fe
A16: Deleted sheet count
A19: Last row used
A20: 28 | B20: 26 | C20: 26
A25: Data blocks
A26: CB_Block_0
A27: 㜸〱敤㕣㕢㙣ㅣ㔷ㄹ摥㌳摥㔹敦慣敤搸㡤搳㑢㑡㘹㑤㑢㈹搴挱㡤搳㠴戶㐰〸扥㌴㌷㥣搸㡤㥤ㄴ〴㘸㌳摥㍤ㄳ㑦戳㌳攳捥捣㍡㜱愹搴ちちㄴ㐱㐱攲㈶ち攵愲ち㈱昱挲攵㠱㔲㉥㉦㐸㐸㈰㔴㄰て昰挰攵愱㈰〴て㈰ㄴ㠹ㄷㅥ㤰攰晢捥捣散捥敥㝡挷敥戶〵ㄷ昹㌸晥㝤收摣收㥣昳㕦捦晦㥦㐹㑥攴㜲戹㝦㈳昱㉦㔳㥥㤹ㅢㄶ搷㠳㔰㍡ㄳ㌳㕥慤㈶㉢愱敤戹挱挴㤴敦㥢敢㜳㜶㄰昶愱㐱愱㙣愳㍥搰换㠱晤㤰㉣㤶搷愴ㅦ愰㤱㥥换ㄵ㡢㠶㠶㝡づ挲摦㤱攴挱㘰慦挱㍣挰搲捣昴晣昲〳ㄸ㜵㌱昴㝣戹㙦散㕣搴昷昰攴攴〴㝥づㅥ扣㝢㘲晦扥戱㤹㝡㉤慣晢昲戰㉢敢愱㙦搶昶㡤㉤搴㤷㙢㜶攵ㅤ㜲㝤挹扢㈸摤挳㜲㜹晦㥤换收挱扢㈷てㅥ㍡㘴摤㜳捦摤㠳㜸㜵敥昴捣昴㠲㉦慤攰㈵ㅡ㔳攷㤴て捥捡㡡捤戵㐹改摢敥㠵㠹㤹㘹晣㑢捤ㅦ㑦㜷㑤㉣慥㐸ㄹ昲搵搲㤷㙥㐵〶〶㍡づ㌸㔳㐱㔰㜷㔶戹㜹㠶㜳ㄴ㑢慤㤸㐱愸㍢㌳戲㔶㌳㥣㘴搴愲㌳㡦扤慢㤹敢㠳捥愲㜴〳㍢戴搷散㜰扤攰㉣㘱愰敡㤰㜳㌶㤰㘷㑣昷㠲㍣㙤㍡㔲㜷㡥搵敤㙡㍥㑡戹扥摢㤲㈱搲ㄳ㔳换㥦㤸ち㥣㤹ㄵ搳㔷㌳ち戸㌱ㄹ㙤㡦晡㤵搶戶户㜴ㅦ㤷㔳㔷㙦攰㤸户㜶㙦㠷㥡㜳愶摦㘸㌹摥扤㘵扣昸搶ㄹ摣搱扤㝤㙡㡦㕡晢扣愱㝢ㅦ戵㤵慤慤挵㐰㑣摦㙡㐷戱ㄸ愳㐰搰㑦㔰㈴㈰〲㡤ㄲ挱〰挱㈰㠰挸晦〳㕣㤲敥挸㉡慤㙣㙡攵㘵慤㕣搱捡㔵慤㉣戵戲愵㤵㉦㘸攵ㄵ慤㙣㙢攵〷戴昲㐵戴㐹㔲戱扦㕦㡢搳㕦㔶扦㜳㜳敥搷扦㍢昹昸㉦㝥㜹搷户㈶㝥晢晤挱㕤㘸㜴㕦㍣愹㔹摦扣〴㔲㙢㔲昱㠱㠹晤晣搹㥣㉢挰ㄴ搶㈱敢㉥㙢㜲戲㝡㘸扦㜹愷愹㜳㔹ㄹ挸㙦㈱㤴ㄱ戴ㅤ戴敥户摤慡㜷㐹攱敥㠶㘹㌳㤰捤㡤ㅢ㡦敢愶扤扡㕢つ㕥戵㜱攵㘲㘸㠶昲晡昶扡收㈰ㅤ摤ㄶ挱㔶㌲㔰敦扢戱扤摢㌹戳㔶㤷㔳㤷敤愸晡搵㙤搵捥㠲敦㉤㜷慦㍤敡换〷ㅢ戵ㅤ㌳㥡㠲㔰㕢㔳㘳㜷慣㌲慡㡡收㌵㌶戳攲〵搲㔵搳ㅢ㜷ㄶ散捡㐵改㉦㑡㡡㐴㔹㔵㑢扤㥡㔵㌱搷㡦捦扢㔸㈸戸戵㝡㜳扡搴扡昷㜲〸㘶㤶㔵捣㜷㔵晡攱晡㤲戹㕣㤳搷戴㌴㠹摥㠹㡡扤㉤挵㐷扤㑡㍤㤸昱摣搰昷㙡慤㌵㔳搵㌵ㄳ㤲愶㝡捡慢捡㝣㍥愷㠴〲〴㙥㕦㥦㄰戹摢扢昳㠲㐲㐴ち挵㘴攴敢㕡挹㙥攲っ㔶㠷㔵搴㈴㘹㔲㝢敤㈶㠳㜱扥㑡挶㘴㜰㘰㙡㑤搴ㅦ㝣改敢㌷ㄹ戶㠱戹㤷户戱愶㡤挶慢扦㜷㑤扡攱㜱搳慤搶愴㥦愹晤〴㘷㘴っ〳攸㔷㈰㄰扡敥ㅥ㔵㥤戸㉣搶昵㑢㜶㌵㕣㈹慣㐸晢挲㑡㠸㌲㘸挸㘲㤱㕢摢㤱㡣慢㔰㘴散㈶ㄸ〵㈸㤵㜲㠵㍤㙣㔴㈸㈱攵㜴㑡愷っ㕥㙥ㄱ攴散搷挲换㠳搶㔱扢ㄶ捡㐸㈸て㕢挰㐸愴搵ㄴ晡㠶㐸愲扥㔹㠹ㄴ挶ㅥ㙢〶㔴㙡摡㙥戸摥攴摢づ㉥㠹㠸㘸㐷ㄶ㙣㍢㔹㐰㔱搰㉡て㌲㜸つ㐴搳㈶つ戲ㅢ愷㠸㠸㙣㤰愱搹㌱㜲㉢㤱戱㝤㠶㡣㐰晢㌴ㄱ戲昵晥敥㌲㠲挴摥㐹愴散搴㤵ㅦ㜷愴搹㐶戶㝣㈴捤慥挶挶ㄹ搷㄰㕣㑢㜰ㅤ挱㕥〰昱㘷㐸㌸㑡㌹攴㕢㤳昱㉡㍣ㅢ㌷㄰扣ㅡ〰昲挹愰捣㠹㐵ㄵ㙤愸慤搸㤱㙣㌷〴㍢㔹ㄹ挵㤱㈸愲㘵摣戰㌳㠷ㅣ㠵攸搸敡摣ㅥ扡㌶慦㜴散敢扡搳㘶㝡㌹愴挸㡣愶改戵㙥搲㌴扤ㄱ㙣摡愳摥扡〹㕤㡤㌱㠲搷〰㤴㡣㥢〹愱㕣㘸昰㙥捤愲愷㐹昹㡡㌰㡢㈲㘳愸㐷〵ㅦㄳ㌲㡦〰ㄹ㐲慥攳昸戲㘳㐳搳ㅣㅣ户㕥昱㌶昴扥敥晣ㅤ㈳扤㑤㙦敥攸ㅤ晡㡢㕥愰ㄵ㝤ぢ搸㑢晣扥慢㡥戹ㄵ搵挶敢〸㙥〳㘸搳㌱㍣㝤扦㔰㑦㠱㌲㡢㥤ㄴ收㜶搳敢愲慣摣愵昵㔵愹㌴搰愰戵㘴晡ㄷ㘴〸て挶㠹㔹搸挲㥥敦换ㅡづ戵㔵㔵挰昳换戵慤㠵挱㔱摦㜳㔸扥㘳㈳〷慦〸挵㤰捦㙢㝤戹㌶ㅢ㌹挳搶㑣昹㥣㔲㤴㐳ㅤ㝣㘷㜷㈱㤱敡搴㑡㕥散㤷㝤扥摣㤱㈴㍤㐸㤲㌷㘰㕢㡤摢〱㈰㈵挴慦扢㑡㤴㝤㙣昶㐶搵慣搵㘲愵㠷㉦攳㜴搲收㐳散㤰㈳〳㤱挳㜶ㅡ晥㠳㘰挸㔹戴㥤㠶戰ㄸ㜰ㄶ愴㕦㠱㙦挱慥挹㔲攴㤶愵愸搹㤱ㄵ慦㄰㔹搱搷搷㜱㥥捥昰慦㈹㍡㘹㤳ㄲ㤹摣㥥㔹㤹㜱ㄶ㙦ㄲㄵ摤㤰ㄴ㉡ㄹ慥愱㠶〴㈲攵戱敤㡥㠸改㐱挴摣㠱㡤㌳昶ㄳ㑣ㄲㅣ〰搰㝦づ㐹戳搵㡤㘷㌸慣㝦㡤㉥敤㜲㌹㔷㈴ㅡ㤴㡢昰戹慥挲敡㄰㕦昳㈶㠲扢〰摡捣ㅦ㍡㈰㌳〸㔱愱㍣㐵㠸㉡㡣㘱㥤戳攵㈵搲挰㉥ぢ㠱愵㤹㝡㄰㝡づ㈳㑢㐳搶慣㜷摡ぢ㘷敤㘰ㄵ㤱愸㔱㉢捥摣扦㈲㕤㔰㤷て摢愷慤捣㕢㕤㤵㔵挳㕡昴敡㄰㙤㈷㘶户挳挱ㅣ摢〱㕢㔲㥤捤㌵㠱搴摢昹ㄸ㐳〸散戴昲户搲ㅢ扢㈵敦㌷て㝤挳捤ㅤ㕤戲挳㥡ㅣ戰㈲愶㘳扥㘸㘱ㄷㄱ㌹愸昶㕢㑢㉢扥㤴戳㐳搶㌱摦慥搶㙣㔷ㄲㄹ戰㌱ㄹ慣㥢㤳ㄷ㄰㈵㔸昰ㄸ〳昴摣㈱㙢挹㌷摤㘰搵㘴㐰㜱㝤㜷换㤳ち㡢攸搶戴敤〶㜸㡤挲㈲昳挳搶攲㡡㜷〹ㄱ摢扡攳ㅥ㌳㔷㠳㙤㠱ㄵㄲ㝤㤴ㄴ㙡㠴㈶㌴㑤ㄴ戵㘲慦昸攱㠱㍣㤷㈳敦攵〹ㄴ慥㜲㍡㝤收ㄹ摡㥢㜶㝤ㅣ愳愱㥤捥㌹つ㈲㝡搴㈸散换㤴挲攴㔴攳ㅥ昶㜹㌳挰挹㘳㘷㑦㌴㈳㜳㉦㉡㘶慤搳换㥦㈱攳ㄵ㔹㌴〲㈱昴搱敤㡡㐸㠵㘵愴ㅣ㜰㈰㌰捥愷㜶昲㉢㔹慡つ愹㙦㔷㌳㝢ㄴ㤱愴㐱㙢捥㕣㤶㌵挴愳ㅤ㌳摣ㄵ㍤搰㡣㜵捣㕡㄰搷捤㜸㡥㘳㤲戴㐸㤶㡢ㄵ㤳ㄴ㍣㔵て扤㔳戶㙢㔸〰㡡晥攲㈲昳㌲㡡捣换慡㘸搰㍡挳搰愰捡㜳㉣敦㠲改摢攱㡡㘳㔷㡡㝣㘰昸㙥㕢搰㈴㤸㥣㤲㌷㐹㠹捣ㄸ㙢戳收捦挲㘴ぢ㈶㠰敥〹挸㔱㙥ㅤ搱て捡搵㐴〱㍦愲㐷挷ㄲ〴㡣昲㤴ㅡ㙦挵㘸扡扡ㅤ〱㤱愳搲㤵攴づ挶㤵㐷㔰ㄲ〹㈱㘲㍤㠳㐴攰ㄵ㑣〹㜹扡戸ぢ搶㔹搷づ㠱㍤㘲散愸ㅤ捥〶㐰㌹〰戲敡㜸㝢扤挲㙡慡搳㜸㐳㉢摣搴㔹搵愲㈶㙥散慣㑦敢㡤搷㙥㔰ㅤ㘹㤴㤴㈲搹慣㤱搲㉣ㅢ捣㜱㍢愹ㅡ愱ㄴ㜷愲㙤㐴㤶摢戴戹敦㤴㈲㉦㐲㌱㈹㥡挹ㄹ㙦㔳㠴㠲㐰㙦慣愳攸戳捦㈶㡦㔴挴㠶㌶㐰㠹㝡㉡㉡ㅢ㡡㐳㠲㈷㜰敤愴㉡㑢昱ㄳ昸㝢㔷㥣㥤慦㠷㉤㌵收攵搱戸㘶慡㔶㥢㜷㘱㈵㔴㑣扦扡㑤㔸ㅡ㙢㡢㌴㡣攲捥㕥戵㝦戴扤㈹㐶㡣搹㤰㘱㤱っ㍦㌰搸㄰捣㤵㡡愸搲㍡ㅢ攲㔶㌷㡡㡢㝣㍡㈵㑤㔷㘱㘰㌱慣捥捡㌵㘵㠶㌵㉤昹㔱搵愱㜱㕡㔴㜲搴戰愶㤶〳愸昴㤰㜲㍣捥㈹〶㌷慣㌳㜴㑢攱ㄲ〳挴㙥㥣㕢愸㠴〸敤㌶〶攰挹㘰晢㘰〷㍢ㄲ㠵㑥㘸㥤㔱㠲ㄶ㌲〸户㜵ㄱ攴㥤ㅥ㌱ち㐱㙡愹昴昷㈳攲昳㑦㌲㝤晤㐸㉥挹挴㑣挴㜰㔷㠶昵〰攴愶㈳㤳攴愲搱㈴㘰ㅥ㐹㌶㈵戴〶㤳㌲㥡ㄸ㐳㌴昹晣㄰户㜸ㄸ换ㅡ㈶摢搴㜰捦㉤戴愱㑤㙢敢扢慣ㄳ㙥愵㔶慦㑡愵㡡ㄳ㔹慤㌴昲戶挰㤷扡〲ㄸ㜱㔳挶扥挴㥢㜲〲㐷㈹㉥㤹㐸敡摤敥㌶㡥愰扢ㄲ㜲ㄸ㈳㔲㝤っ㐰㘶戸攵㔴㐰慣攳㥥〲敤挳摤捤ぢっ敡昲ㅣ㐴㕡㐷ㄱ㘵搹ㅣ敥攳㌵愲挸㡡摢㔲捤收扣㌹㡦㌶㝢慡攸戸ㅤㄵ㙤ぢㅣ㘱㥤㤱挰㉢ㄴ㘰㡣昴挸ㅤㅣ㈴㜷㈵㡥敥㕥㜹㐴㍤收慥〰ㄵち〳㠲㌱㕥㥥㠲㜲搸㔵㌰ㄲつ㙥慤㘹㜵ぢ㐶㝦㘹㜹ㅢ㔳〰㠲㘱㘰ㅡ戴㘸ㄹㄹ㌸㌳挸㙦㙥攰摣㠴㔶ㄹㄱ搲㜴㌰㤵㌱捡㔱㌸散㠱㌴㜰ㄳて搲㑢ㅥ㤴㔰戸㐷㕤っ㑢敥㈶㡥㍢㌸〲㜹晥㌵㙤㠵ぢ㘶㠸敢㉦敥摥戶攲愹㙡㤵收㉥晣㜳摢〲慢戸扡ㄱ㤹愳㝢摡㉥㘵愹㌵搱扥扢愵慤㈲扥㉣㜸㘰㜶攲戸ㄹ㔶㔶ㄶ挳昵攸攲㔶慦㈴愱晦㄰晥㠸つ摦㑥㥢㌹敦昲㈲敡ㅡ昷扥㜴搱昵㉥戹㙡㕥㝡挰㕢㝦愰㄰㕣愱散攷㈴㑢戹㝦攳㐷㈵㉤愷晦〰㈳㙥㘵摡ㅣ愰改㈰攱㌸㉡㐵搲㘰っ昹っ㍡㠱敤摥戸㌵㐰㍡搹搳㐶㈷㑡㄰散㄰㡡㝢攱㈵㈳ㄴ昱㝤愰㤵挴ㄲㅤ挹戱攷㕦〳敢㡢敦愱㠴〸挷㜳㉣㐶昴搷㈰㤷㠱㍡㈵挸攳㉢ㅥ扣㄰昲晦㠳愵㠴㥢㌷㘴愷晦〲㌳㡢㘷摢㔱㜴㈳㔱昴摤づㄴ〹㕥〳㔱晣㝢ㄲ㤹㈴改っ捦扥愰㐰㌸搷戴㜳〰㝤搹㉦晣晥てて愰㜳㌱㜱㈸ㅢつ愱戶㕢昱摣㌰ㄱ晡㍡㑣〴〶敦㤵㠹㜰ちㄹ挱㈸㝥㘴㈲挴㍥㤰㜹ㄴ㙣㙥㈲㌰戶㤷㘱〸愶㐲慤㈹户〶㑦㘰搷㌸昴㡦ㅤ挷挵㕢ㄹ㈰㥥て愵ㄵ捣挰㈳㜵㙤㘷昱㠲改㥢捥㕥㔵㝥捣㤷㔰㘶晥ㄲ㙥㜲慢㉥散㜱晤㠶㌵慡搳〶扥㡡挴换扥攳㑦搹摡晤㜵㘰㉡㑡㤱晢㕥ㄴ㐵攱㐵㜸㑡〴捦つ戹昷敤昹挶戱㍦㍣昴搸ㄱ摥㔶㡢㘹㔵扦ㅤ昹㕥㐲昶戴㈷㄰搴㑤㕤ㄴ戹㥡ㅦ收㥣挲㈷㑡昶㙡㑤㑥㥢扥戲㠲〲挳㐹戲ㄱ攱愵〸㌳㈲扥敤㘰㘲攲摥㐳㘴㘲㑥戴戹㍢搵㠷㑤捡㐵㌸㤱㥡戸昲改㈵㘱㐳搱㔵㤱昵㘸㙤敡摦㠲㉡㝡㠱ㄳ㘹戵ㄲ㜹敡㘴ㄲ攲㥢敤扡敥㄰㜵㕤㜴㤰㘱搸㍦㤱㔲㠸㍦㤰㐲搲〷ㄹ㕥〸㔰㔲敡っ㌲晡ㅤ〰ㄹ㤱戵昶㄰㉦晤〱㍢㐲㐰㌶㉥晤昵昸ㄱぢ㜶ㄱ㔸㑣㝣昱扤㥥㘸㘹㡢㈶慡㠹愱㕡㘵搳㉣㈲愳づ㉦㉣㤸㑣㑡㤷㤰㐹㤲㝥〰戹㉤扢愳昸㤲㈱㈷ち扣㐵㡣慤㍢昴戵㤵㥣㝢摤㍡㙥㝥㐰捦ㄴ㤴挲㜰㜷戳ㄸ〷㔲ㄵ愳㡢㥡㤶愲㈲挲攱㈸摢攸㌴㄰㔷㐱㘷戹㝢㜱㉡㐵昰㡦㕦ち戱㝥扣㌹昴搵敤㌵搴㜱㙥㍦ㄶ挸㕦搸㕦㌷㘶㌰㌶摥㑡㡥㠱㠴摤㔲慢㘲㜴㍤晣㉣扡㜰搱㌹㘱㌴戳敡㔹ㅣ挲㥦㠴戳晡戴づ晤捦攸戵攲慣㜳散捤㌰㜶㡢晥㝦㈷ち㌶搵晦㠲戱㌷㠵挸㜷挵ㄹ㍥攸㡣㥦㙣ㅡ戲攱㡥挰戳㡤攰㡤㍡ㄸㅢ㉡换㤰㜷㤴㕢挴挷慢㔱戵㤲攰昰㝢攵摢慦㐶㌴晡搲戶ㅤ攸㉡〰ㄹㅢ搲扦〶ㄱ搴戵㝦慢摣㑡㑥户㠵㜷愳攳㥥㔳㜶挵昷〲捦ち挷ㄶㄱ昴ㅤ攳户㘷ㄶ㙣㥥㈹昱搵㜶愱㜶ぢ㜶㘲昰扤攸㜳㝡ㅥ〲晢戴っ㕦慡㔸㈴㈳ぢ㕢㡢㘴昰㍢愴㤱㔴㜸㠹摡㈱戸捡扡慦㙥搶昰改敡㍣㝣㥤㈱㡢戶㠵戲㡢㍣捥敤㌷㌴戸㜵戸愳昵づ昸㠳㘴㙤〲挱㌱戵㠴㜷扦㤷晢摡扥〷慤㙤攳戵〵㙣搹㥢捦慤愴㍦つ㥣㙥敤㉤慤㈴挳㜷昲㡢攴㤲㔱㈶挴愵晤㈳昸扢㜵〷㉤㐷ㅢ〵㥤挷ㅦ㜴搳ㄱ㌶㕥㠳晢㙣ぢ搱敦昳攸㉡愶〸昰㙢㤸㜱㠶て㠲㕥㍥戲愲昸ㄲ㤶㐵〶㐰㍥㔷愸〰㜴愷敡愷㌶愲敡㤱㤳散㠹㈴㜸挶㈰㌹㤶挴ㄷ搰㤰摢ㄵ㉤ㅢ㉣挱㘵ぢ㜵㤶㐰摥㐸㝡㈰㥦ㄳ㍣㑢愸㠹㝣づㅤㅡㄳ戱㔱摡㝤㈲㥦摤㘸㈲㠲㔶㠰㕡㘸㝡晣㤱㐴㡢ㄸ㌵㔴ㅢづ㠱㑢攰〱㡣㈴捡㘴㤸昲㤱㐲愷㄰挵ㄸ扥㐷ㄴ㈱晤㌲晥晢晣㤱㥦㍦挷昴户㈳㐲㐹㐴㔴戵慥㠲ㄲ㔱慤攲ㄳ改㔵昸㈸敤扥㡡㈷㌶㕡挵〸㠵㈵㘷㘲㠴〰㐳㝤愲㡣㍦㙡㔵㜵㘴戸愱晣ㄵ攷〹昰摢㌲㡢ㄱㄳ㈵慡敦㈵㘴搰㤷㍢慦㕡㕤㐶㈶改慢㜳㈳㌲扥昲㔱㠶ㄲ㙦㐴搲愹㔳㠸扣戲㠵㐸㍤ㄶ㥤搸ㅤ扢㉤㠴〴㤶挴捦㘶扢捡昶㐲㡦愱㝥昱攱〴㌱挷㡦㈷㥦㔰㘹㜱昰〹㠴ㄱ㤹愶㈴㈴㙥愴昸㔰搲昸摢捦㌴㝤愷愸㐰〲昵㐴㡤㐹㜰慡昱〷㤳挶〷昰㜹㤶㙡㤳攳㔵〲愶攷㤳挶㈴㑣搵昸戱愴昱㕦て散㙤㌴㑥攸㌰ㅡ㔹㈷㤱㘴ㄸ扤敡ㄸ㤰晡㔴㝢ㄸ捤㜵㡢㡡㜴挰㡡㡡㈹㐲㔵っ戹愶㔴改㈰㙥㠵昸昸㔸㝡づ㤷㥣㜰ㄷ〴搲㌶晡㍦ㄳ㑥攰昲搳慣ㄹ㥡昸ㄶ㝡つ㔱㘷摦㔰㑦散㕣戰收㝤ㄴ昴㕢㈷〲ㅣ慥慡摢㡡㐴㘰ㄷ攴愳晤摤挴㍢㥦㘱㐳㌶昷㈳㠹㤶㘹扣㑣搲㥢ㄶ㔱ㄱ㤶扣㜸㝦㠲搹摣愳㑤㥡㌱ㅥ〱㜲㈰㈶〱㤹㌱ㅥ〵㡣㈲㌲㝢㔸㌰㐲晥㔷捣晤㝥㔶㝣㠰攰㌱㠰㤲㈰戳㤳づちㅦ〴ㄸ㑥晥挷㡡戱㌵攵㌸搱挴㐳挹换搲㘴㘴㝣㤸ㅤㅥ〷攸㠳ㅦ㔷挴㐴㔸㌲㍥㠲㤲昴㑢㈹㌸搴㑢㍦捡㡡㡦ㄱ㍣〱㔰搲㌹搹㉤敦ㅡ搷搴愳ち晢㌸扡㡡㐷〹昰㙢㝣㈲捥昰㐱攷㍥扣愵扢搱捣㌳㜱昲㠵㍦㘲㥥㉤㥦昲摦㡢㑦昳搷戹攸㍥晣捦㈴扡戲昰昳摡㥢㝢ㅢ㡢㑣㐰攳㕣晤慥㘲戳㕦挴㌸㕣㔷㌳㤴挲ㄱ愹㔴㡡㕡㐱㄰摦㕣戰昰昰〶扥攵戰慡㄰㠲㌴愰㉡摣戸攲〸ち㡣㑦戱㈹㜱㑣㍣ㄹ㥦收ㄳ㔱慢㌶昱㌳㜱㠶て㠲㜸㔵摤ㅦ㠸扢㈷㉦㈴慥㔵㠵摤昶㐲攲㕦㔵慣愴㕦昸㈴〷㔳挸㐲愶㔵㉢ㄱ㘹㡡㠶扥㠰捣㔰摦㌰攷㜶㍦㝥戵换愲㜲扥㝡晥晣㍦㠷昳㘳搷攷摦昹昶挱㈷㥦晦搹ㅦ㍦昹慢昷ㅣ晥换扦㥥㝡敡㔷㝦晡攴㜳晦晡攱昲攱㥦㍣晤昴㡦㑦㝥昹戹㍦敥戶扥愲㍤昳捦戹慦㍣㍣㜹昱攱〷慤戳户ㅦ㝢昸㕤て摣㌷戹㜰搵㜸㕦㕦㝦晦㙤愳㍦扤敥昵㈳㡦㍥昸慣昸搱㙦慥㜵㠵㕡㉥㕥搰㍡つ㉥㕢㑤攳㡢挸㘰ㅡ㥣昱换㍡つ㉥㔷㙤搴㜲扣㔱搳㈸㈸挲戹挱〹愸ち戳戵㘲攰㍦〲㘵戴慣
A28: Decisioneering:7.0.0.0

Sheet ERR & Sensitivity Analysis
B2: Tanzania: Mafia Island Airport
B4: ERR and sensitivity analysis | G4: Last updated: 8/27/2014
B6: Change the "User Input" cells in the table below to see the effect on the compact's Economic Rate of Return (ERR) and net benefits (see chart below). To reset all values to the default MCC estimates, click the "Reset Parameters" button at right. Be sure to reset all summary parameters to their original values ("MCC Estimate" values) before changing specific parameters.
B8: Parameter type | C8: Description of key parameters | D8: Parameter values
D9: User Input | E9: MCC Estimate | F9: Plausible range | G9: Values used in ERR computation | I9: All summary parameters set to initial values?
B10: Summary | C10: Actual costs as a percentage of estimated costs | D10: 1 | E10: 1 | F10: 80 - 120% | G10: =D10 -> 1 | I10: =IF(D10=E10,IF(D11=E11,"Y","N"),"N") -> Y
B11: Summary | C11: Actual benefits as a percentage of estimated benefits | D11: 1 | E11: 1 | F11: 80 - 120% | G11: =D11 -> 1
B13: Specific | C13: One-time increase in arrivals, with project | D13: 0.04 | E13: 0.04 | F13: 0 - 11% | G13: =IF($I$10="Y",D13,E13) -> 0.04 | I13: All specific parameters set to initial values?
B14: Specific | C14: Estimated % reduction in foreign object damage with project | D14: 0.5 | E14: 0.5 | F14: 0 - 90% | G14: =IF($I$10="Y",D14,E14) -> 0.5 | I14: =IF(D13=E13, IF(D14=E14,IF(D15=E15,IF(D16=E16,IF(D17=E17, "Y","N"),"N"),"N"),"N"),"N") -> Y
B15: Specific | C15: Estimated % reduction in maintenance time, with project | D15: 0.5 | E15: 0.5 | F15: 0 - 90% | G15: =IF($I$10="Y",D15,E15) -> 0.5
B16: Specific | C16: Estimated % reduction in incidents with project | D16: 0.5 | E16: 0.5 | F16: 0 - 90% | G16: =IF($I$10="Y",D16,E16) -> 0.5 | I16: More Info
B17: Specific | C17: Increased annual airport O&M costs as a percentage of investment costs | D17: 0.005 | E17: 0.005 | F17: 0.5 - 3.0% | G17: =IF($I$10="Y",D17,E17) -> 0.005 | I17: Activity Description
I18: User's Guide
B19: =IF($I$10="N",IF($I$11="N","Reminder: Please reset all summary parameters to original values before changing specific parameters. Specific parameters will only be used in ERR computation when all summary parameters are set to initial values.",0),0) -> 0
C21: User Generated Economic rate of return (ERR): | D21: =ERR!C52 -> 0.02295461726
C23: MCC Estimated ERRs: | E23: Original | F23: Closeout*
D24: ERR | E24: 0.175 | F24: =Sensitivity!F54 -> 0.01212971847
D25: Date | E25: 2007-08-24 | F25: 2014-08-27
C27: User Generated Present Value (PV) of Benefits: | D27: =PV_ben -> 6499602.386 | E27: 2013 US$, 10% discount rate
C28: Present Value (PV) of Benefits*: | D28: =Sensitivity!F168 -> 6007670.112 | E28: 2013 US$, 10% discount rate
C30: Present Value (PV) of MCC Costs: | D30: =PV_cost -> 11869805.76 | E30: 2013 US$, 10% discount rate
C32: * The Closeout estimates are expected values based on a 10,000-trial Monte Carlo simulation, while the User Generated numbers above show the base case scenario.

Sheet Assumptions
B1: Tanzania: Mafia Island Airport | E1: Last updated: 8/27/2014
B2: Assumptions
C3: =IF('ERR & Sensitivity Analysis'!$I$10="N","Note: Current calculations are based on user input and are not the original MCC estimates.",IF('ERR & Sensitivity Analysis'!$I$14="N","Note: Current calculations are based on user input and are not the original MCC estimates.",0)) -> 0
B4: * all prices are in 2013 US$ unless otherwise noted
B6: Value | C6: Assumption | D6: Source | E6: Note
B7: ='ERR & Sensitivity Analysis'!G17 -> 0.005 | C7: Increased annual airport O&M costs as a percentage of investment costs | D7: Assumption | E7: =A36 -> 1
B9: 23375.66 | C9: Average direct costs for foreign object damage per 10k movements | D9: McCreary (2010) | E9: =A37 -> 2
B10: ='ERR & Sensitivity Analysis'!G14 -> 0.5 | C10: Estimated % reduction in FOD with project | D10: Assumption | E10: =A38 -> 3
B11: 1.6 | C11: FOD strikes on the runway per 10K movements | D11: McCreary (2010) | E11: =A39 -> 4
B13: 1 | C13: Average time to repair FOD (days) | D13: Assumption | E13: =A40 -> 5
B14: 240 | C14: Price of a rountrip ticket Dar es Salaam-Mafia Island | D14: Coastal Aviation (2014) | E14: =A41 -> 6
B16: 211.03 | C16: Aircraft maintenance costs/hour | D16: Aircraft Cost Calculator (2014) | E16: =A42 -> 7
B17: 203 | C17: Average maintenance hours/year | D17: Aircraft Cost Calculator (2014) | E17: =A43 -> 8
B18: ='ERR & Sensitivity Analysis'!G15 -> 0.5 | C18: Estimated % reduction in maintenance time, with project | D18: Assumption | E18: =A44 -> 9
B20: 0.53 | C20: Aviation incidents per 10,000 aircraft movements | D20: Tanzania Civil Aviation Authority (2006) | E20: =A45 -> 10
B21: 5.2 | C21: Fatal accidents per 1,000,000 aircraft movements | D21: UK Civil Aviation Authority (2013) | E21: =A46 -> 11
B22: ='ERR & Sensitivity Analysis'!G16 -> 0.5 | C22: Estimated % reduction in incidents with project | D22: Assumption | E22: =A44 -> 9
B23: 2100000 | C23: Replacement value of aircraft | D23: Controller.com (2014) | E23: =A47 -> 12
B24: =100000*1.52357 -> 152357 | C24: Minimum liability insurance coverage per passenger | D24: ICAO, African Civil Aviaton Policy (2013) | E24: =A48 -> 13
B26: 0.018 | C26: Annual growth rate of arrivals | D26: Tanzania Airports Authority data | E26: =A49 -> 14
B27: ='ERR & Sensitivity Analysis'!G13 -> 0.04 | C27: One-time increase in arrivals, with project | D27: Assumption based on demand calculations | E27: =A50 -> 15
B28: 0.4 | C28: Percent of visitors who are tourists | D28: Busalama, Baseline Evaluation Report (2012) | E28: =A51 -> 16
B29: 0.36 | C29: Percent of visitors who are business travelers | D29: Busalama, Baseline Evaluation Report (2012) | E29: =A51 -> 16
B31: 104390 | C31: Available annual bed-nights at Mafia Island hotels | D31: Busalama, Baseline Evaluation Report (2012) | E31: =A52 -> 17
B32: 6.34 | C32: Average visitor stay on Mafia Island (days) | D32: Busalama, Baseline Evaluation Report (2012) | E32: =A53 -> 18
B33: =604/6.34 -> 95.2681388 | C33: Average spending per visitor per day (US$/day) | D33: Busalama, Baseline Evaluation Report (2012) | E33: =A54 -> 19
B35: Notes
A36: 1 | B36: The financial IRR produced during design estimated operation and maintenance costs, which averaged about 0.5% of the estimated total construction costs.
A37: 2 | B37: McCreary (2010), Average cost of strikes on a runway per 10K movements (costs have been converted into 2014 value using a CPI Inflation calculator from the Bureau of Labor Statistics).
A38: 3 | B38: The model assumes that a smoother runway will reduce FOD on the runway by eliminating rocks and debris, and thus reduce FOD strikes. However, FOD data collection is sparse, and airlines do not typically share their data with the public. Thus, no studies have been found that estimate the percentage reduction in FOD strikes from an improved runway. This model assumes 30% as a placeholder and will conduct sensitivity analysis around it.
A39: 4 | B39: McCreary (2010), Average cost of FOD damage on a runway per 10K movements. FOD is foreign object debris. This may include nails, plastic bags, or anything that can obstruct airplane movements along the runway.
A40: 5 | B40: The model assumes that each FOD strike will result in one day of repair, during which time the aircraft will be idle and unable to travel to/from Mafia. Because some strikes will result in minor damage requiring little repair, other strikes may result in major requiring several days of repair. Sensitivity analysis conducted on this parameter demonstrated that it has little impact on the ERR.
A41: 6 | B41: Coastal Aviation website (http://www.coastal.co.tz/). Accessed 8/7/2014.
A42: 7 | B42: Aircraft Cost Calculator (2014), Derived from estimates of hourly operating costs for a Cessna Grand Caravan CE-208B, including airframe maintenance and engine maintenance. Estimates of maintenance costs/hour vary widely for the Cessna Grand Caravan, from $100-400/hour.
A43: 8 | B43: Aircraft Cost Calculator (2014), Derived by dividing the estimate of maintenance costs/hour by the estimates of maintenance costs/year.
A44: 9 | B44: Assumed using the same logic as for the reduction in FOD strikes. Sensitivity analysis will be conducted.
A45: 10 | B45: An incident is defined here as any type of event that affects the flight operations such as a blown tire, overrunning the runway, hitting a bird, or an accident. One movement is either a take-off or a landing, meaning there are two movements per flight. This estimate comes from averaging the incidents
A46: 11 | B46: UK CAA (2013), Fatal accident rate for Africa, 2002-2011.
A47: 12 | B47: Based on base price of new 2014 Cessna Grand Caravan ($2,149,000). Source: Controller.com. http://www.controller.com/listingsdetail/aircraft-for-sale/CESSNA-GRAND-CARAVAN-EX/2013-CESSNA-GRAND-CARAVAN-EX/1278093.htm
A48: 13 | B48: ICAO (2013), The International Civil Aviation Organization under the Montreal Convention of 1999 requires a minimum liability insurance equivalent to 100,000 Special Drawing Rights (SDR) per passenger. 100,000 SDR was converted to 2013 US$ using the exchange rate effective at compact closeout on September 16, 2013, using an exchange rate provided by the IMF at http://www.imf.org/external/np/fin/data/rms_sdrv.aspx.
A49: 14 | B49: Long-run growth trend calculated from TAA passenger data for Mafia Aiport, 1999-2013.
A50: 15 | B50: Calculated using a model of demand for air travel to Mafia Island (see 'Demand' worksheet). Assuming that airlines pass on the aircraft operating cost savings to reduce ticket prices, consumers will respond with a one-time increase in travel to Mafia Island of approximately 3.4%. After the market adjusts to the new equilibrium price, the counterfactual growth rate in annual flights and passengers continues in both scenarios.
A51: 16 | B51: Busalama (2012), Table 19, p. 31.
A52: 17 | B52: Busalama (2012), p. 32.
A53: 18 | B53: Busalama (2012), p. 35.
A54: 19 | B54: Busalama (2012). Derived by dividing the average visitor spending/trip ($604) by the average stay/vistor (6.34 days).

Sheet ERR
B1: Tanzania: Mafia Island Airport | C1: =IF('ERR & Sensitivity Analysis'!$I$10="N","Note: Current calculations are based on user input and are not the original MCC estimates.",IF('ERR & Sensitivity Analysis'!$I$14="N","Note: Current calculations are based on user input and are not the original MCC estimates.",0)) -> 0 | I1: Last updated: 8/27/2014
B2: ERR Summary | C2: <--------------------- Compact Period ---------------------->
B3: Project year | C3: 0 | D3: 1 | E3: 2 | F3: 3 | G3: 4 | H3: 5 | I3: 6 | J3: 7 | K3: 8 | L3: 9 | M3: 10 | N3: 11 | O3: 12 | P3: 13 | Q3: 14 | R3: 15 | S3: 16 | T3: 17 | U3: 18 | V3: 19 | W3: 20
A4: Notes | B4: Year | C4: 2010 | D4: 2011 | E4: 2012 | F4: 2013 | G4: 2014 | H4: 2015 | I4: 2016 | J4: 2017 | K4: 2018 | L4: 2019 | M4: 2020 | N4: 2021 | O4: 2022 | P4: 2023 | Q4: 2024 | R4: 2025 | S4: 2026 | T4: 2027 | U4: 2028 | V4: 2029 | W4: 2030
A6: =A61 -> 1 | B6: Costs
B7: Construction costs | C7: =Costs!I8 -> 0 | D7: =Costs!J8 -> 0 | E7: =Costs!K8 -> 3410204.78 | F7: =Costs!L8 -> 7642163.17 | G7: =Costs!M8 -> 20000
B8: Supervision | C8: =Costs!I9 -> 0 | D8: =Costs!J9 -> 285000 | E8: =Costs!K9 -> 645000 | F8: =Costs!L9 -> 740175 | G8: =Costs!M9 -> 315468
B9: Environmental Studies | C9: =Costs!I10 -> 0 | D9: =Costs!J10 -> 0 | E9: =Costs!K10 -> 0 | F9: =Costs!L10 -> 0 | G9: =Costs!M10 -> 0
B10: Resettlement | C10: =Costs!I11 -> 0 | D10: =Costs!J11 -> 0 | E10: =Costs!K11 -> 5983.185907 | F10: =Costs!L11 -> 13408.13409 | G10: =Costs!M11 -> 0
B11: Feasibility Studies | C11: =Costs!I12 -> 0 | D11: =Costs!J12 -> 0 | E11: =Costs!K12 -> 420000 | F11: =Costs!L12 -> 0 | G11: =Costs!M12 -> 0
B12: Technical assistance | C12: =Costs!I13 -> 0 | D12: =Costs!J13 -> 107567.7598 | E12: =Costs!K13 -> 243442.8249 | F12: =Costs!L13 -> 279364.7952 | G12: =Costs!M13 -> 0
B13: Administrative Costs | C13: =Costs!I14 -> 0 | D13: =Costs!J14 -> 88990.41303 | E13: =Costs!K14 -> 201399.3558 | F13: =Costs!L14 -> 231117.47 | G13: =Costs!M14 -> 0
B14: M&E Costs | C14: =Costs!I15 -> 0 | D14: =Costs!J15 -> 13305.16153 | E14: =Costs!K15 -> 30111.68135 | F14: =Costs!L15 -> 34554.90503 | G14: =Costs!M15 -> 0
A15: =A62 -> 2 | B15: Increased operation & maintenance costs | C15: 0 | D15: 0 | E15: 0 | F15: 0 | G15: 0 | H15: =Inv_cost*OM_pct -> 70638.88825 | I15: 70638.88825 | J15: 70638.88825 | K15: 70638.88825 | L15: 70638.88825 | M15: 70638.88825 | N15: 70638.88825 | O15: 70638.88825 | P15: 70638.88825 | Q15: 70638.88825 | R15: 70638.88825 | S15: 70638.88825 | T15: 70638.88825 | U15: 70638.88825 | V15: 70638.88825 | W15: 70638.88825
B17: Total costs | C17: =SUM(C7:C15) -> 0 | D17: =SUM(D7:D15) -> 494863.3344 | E17: 4956141.828 | F17: 8940783.474 | G17: 335468 | H17: 70638.88825 | I17: 70638.88825 | J17: 70638.88825 | K17: 70638.88825 | L17: 70638.88825 | M17: 70638.88825 | N17: 70638.88825 | O17: 70638.88825 | P17: 70638.88825 | Q17: 70638.88825 | R17: 70638.88825 | S17: 70638.88825 | T17: 70638.88825 | U17: 70638.88825 | V17: 70638.88825 | W17: 70638.88825
A20: =A63 -> 3 | B20: Airport Traffic
B21: Without project
B22: Inbound flights | C22: =Tourism!N6 -> 1444 | D22: =Tourism!O6 -> 1394 | E22: =Tourism!P6 -> 1462 | F22: =Tourism!Q6 -> 1488.316 | G22: =Tourism!R6 -> 1515.105688 | H22: =Tourism!S6 -> 1542.37759 | I22: =Tourism!T6 -> 1570.140387 | J22: =Tourism!U6 -> 1598.402914 | K22: =Tourism!V6 -> 1627.174166 | L22: =Tourism!W6 -> 1656.463301 | M22: =Tourism!X6 -> 1686.279641 | N22: =Tourism!Y6 -> 1716.632674 | O22: =Tourism!Z6 -> 1747.532063 | P22: =Tourism!AA6 -> 1778.98764 | Q22: =Tourism!AB6 -> 1811.009417 | R22: =Tourism!AC6 -> 1843.607587 | S22: =Tourism!AD6 -> 1876.792523 | T22: =Tourism!AE6 -> 1910.574789 | U22: =Tourism!AF6 -> 1944.965135 | V22: =Tourism!AG6 -> 1979.974507 | W22: =Tourism!AH6 -> 2015.614048
B23: Passenger arrivals | C23: =Tourism!N10 -> 9671 | D23: =Tourism!O10 -> 9676 | E23: =Tourism!P10 -> 9733 | F23: =Tourism!Q10 -> 9908.194 | G23: =Tourism!R10 -> 10086.54149 | H23: =Tourism!S10 -> 10268.09924 | I23: =Tourism!T10 -> 10452.92503 | J23: =Tourism!U10 -> 10641.07768 | K23: =Tourism!V10 -> 10832.61707 | L23: =Tourism!W10 -> 11027.60418 | M23: =Tourism!X10 -> 11226.10106 | N23: =Tourism!Y10 -> 11428.17088 | O23: =Tourism!Z10 -> 11633.87795 | P23: =Tourism!AA10 -> 11843.28775 | Q23: =Tourism!AB10 -> 12056.46693 | R23: =Tourism!AC10 -> 12273.48334 | S23: =Tourism!AD10 -> 12494.40604 | T23: =Tourism!AE10 -> 12719.30535 | U23: =Tourism!AF10 -> 12948.25284 | V23: =Tourism!AG10 -> 13181.32139 | W23: =Tourism!AH10 -> 13418.58518
B25: With project
B26: Inbound flights | C26: =Tourism!N22 -> 1444 | D26: =Tourism!O22 -> 1394 | E26: =Tourism!P22 -> 1462 | F26: =Tourism!Q22 -> 1605 | G26: =Tourism!R22 -> 1669.2 | H26: =Tourism!S22 -> 1699.2456 | I26: =Tourism!T22 -> 1729.832021 | J26: =Tourism!U22 -> 1760.968997 | K26: =Tourism!V22 -> 1792.666439 | L26: =Tourism!W22 -> 1824.934435 | M26: =Tourism!X22 -> 1857.783255 | N26: =Tourism!Y22 -> 1891.223353 | O26: =Tourism!Z22 -> 1925.265374 | P26: =Tourism!AA22 -> 1959.920151 | Q26: =Tourism!AB22 -> 1995.198713 | R26: =Tourism!AC22 -> 2031.11229 | S26: =Tourism!AD22 -> 2067.672311 | T26: =Tourism!AE22 -> 2104.890413 | U26: =Tourism!AF22 -> 2142.77844 | V26: =Tourism!AG22 -> 2181.348452 | W26: =Tourism!AH22 -> 2220.612724
B27: Passenger arrivals | C27: =Tourism!N26 -> 9671 | D27: =Tourism!O26 -> 9676 | E27: =Tourism!P26 -> 9733 | F27: =Tourism!Q26 -> 10806 | G27: =Tourism!R26 -> 11238.24 | H27: =Tourism!S26 -> 11440.52832 | I27: =Tourism!T26 -> 11646.45783 | J27: =Tourism!U26 -> 11856.09407 | K27: =Tourism!V26 -> 12069.50376 | L27: =Tourism!W26 -> 12286.75483 | M27: =Tourism!X26 -> 12507.91642 | N27: =Tourism!Y26 -> 12733.05891 | O27: =Tourism!Z26 -> 12962.25397 | P27: =Tourism!AA26 -> 13195.57455 | Q27: =Tourism!AB26 -> 13433.09489 | R27: =Tourism!AC26 -> 13674.8906 | S27: =Tourism!AD26 -> 13921.03863 | T27: =Tourism!AE26 -> 14171.61732 | U27: =Tourism!AF26 -> 14426.70643 | V27: =Tourism!AG26 -> 14686.38715 | W27: =Tourism!AH26 -> 14950.74212
B29: Change in airport traffic
B30: Inbound flights | C30: =C26-C22 -> 0 | D30: =D26-D22 -> 0 | E30: 0 | F30: 116.684 | G30: 154.094312 | H30: 156.8680096 | I30: 159.6916338 | J30: 162.5660832 | K30: 165.4922727 | L30: 168.4711336 | M30: 171.503614 | N30: 174.5906791 | O30: 177.7333113 | P30: 180.9325109 | Q30: 184.1892961 | R30: 187.5047034 | S30: 190.8797881 | T30: 194.3156243 | U30: 197.8133055 | V30: 201.373945 | W30: 204.998676
B31: Passenger arrivals | C31: =C27-C23 -> 0 | D31: =D27-D23 -> 0 | E31: 0 | F31: 897.806 | G31: 1151.698508 | H31: 1172.429081 | I31: 1193.532805 | J31: 1215.016395 | K31: 1236.88669 | L31: 1259.150651 | M31: 1281.815362 | N31: 1304.888039 | O31: 1328.376024 | P31: 1352.286792 | Q31: 1376.627954 | R31: 1401.407257 | S31: 1426.632588 | T31: 1452.311975 | U31: 1478.45359 | V31: 1505.065755 | W31: 1532.156938
B33: Benefits
A34: =A64 -> 4 | B34: 1. Aircraft operating cost savings
B36: Routine aircraft maintenance cost savings | C36: =Aircraft!E34 -> 0 | D36: =Aircraft!F34 -> 0 | E36: =Aircraft!G34 -> 0 | F36: =Aircraft!H34 -> 80492.42013 | G36: =Aircraft!I34 -> 79869.16278 | H36: =Aircraft!J34 -> 81306.80771 | I36: =Aircraft!K34 -> 82770.33025 | J36: =Aircraft!L34 -> 84260.19619 | K36: =Aircraft!M34 -> 85776.87972 | L36: =Aircraft!N34 -> 87320.86356 | M36: =Aircraft!O34 -> 88892.6391 | N36: =Aircraft!P34 -> 90492.7066 | O36: =Aircraft!Q34 -> 92121.57532 | P36: =Aircraft!R34 -> 93779.76368 | Q36: =Aircraft!S34 -> 95467.79943 | R36: =Aircraft!T34 -> 97186.21982 | S36: =Aircraft!U34 -> 98935.57177 | T36: =Aircraft!V34 -> 100716.4121 | U36: =Aircraft!W34 -> 102529.3075 | V36: =Aircraft!X34 -> 104374.835 | W36: =Aircraft!Y34 -> 106253.582
B37: Foreign object damage (FOD) cost savings | C37: =Aircraft!E42 -> 0 | D37: =Aircraft!F42 -> 0 | E37: =Aircraft!G42 -> 0 | F37: =Aircraft!H42 -> 3582.44625 | G37: =Aircraft!I42 -> 3181.453918 | H37: =Aircraft!J42 -> 3238.720089 | I37: =Aircraft!K42 -> 3297.01705 | J37: =Aircraft!L42 -> 3356.363357 | K37: =Aircraft!M42 -> 3416.777898 | L37: =Aircraft!N42 -> 3478.2799 | M37: =Aircraft!O42 -> 3540.888938 | N37: =Aircraft!P42 -> 3604.624939 | O37: =Aircraft!Q42 -> 3669.508188 | P37: =Aircraft!R42 -> 3735.559335 | Q37: =Aircraft!S42 -> 3802.799403 | R37: =Aircraft!T42 -> 3871.249792 | S37: =Aircraft!U42 -> 3940.932289 | T37: =Aircraft!V42 -> 4011.86907 | U37: =Aircraft!W42 -> 4084.082713 | V37: =Aircraft!X42 -> 4157.596202 | W37: =Aircraft!Y42 -> 4232.432934
Z38: =NPV(0.1,D47:W47) -> 6877075.291
B39: Total aircraft operating cost savings (per year) | C39: =SUM(C36:C37) -> 0 | D39: 0 | E39: 0 | F39: 84074.86638 | G39: 83050.6167 | H39: 84545.5278 | I39: 86067.3473 | J39: 87616.55955 | K39: 89193.65762 | L39: 90799.14346 | M39: 92433.52804 | N39: 94097.33154 | O39: 95791.08351 | P39: 97515.32301 | Q39: 99270.59883 | R39: 101057.4696 | S39: 102876.5041 | T39: 104728.2811 | U39: 106613.3902 | V39: 108532.4312 | W39: 110486.015 | Y39: =NPV(0.1,D39:W39) -> 620221.5778 | Z39: =Y39/$Z$38 -> 0.09018682384
A41: =A65 -> 5 | B41: 2. Flight safety improvements
A42: =A66 -> 6 | B42: Reduced insurance claims due to fewer incidents | C42: =Safety!E33 -> 0 | D42: =Safety!F33 -> 0 | E42: =Safety!G33 -> 0 | F42: =Safety!H33 -> 159801.1792 | G42: =Safety!I33 -> 158559.2527 | H42: =Safety!J33 -> 161413.3192 | I42: =Safety!K33 -> 164318.759 | J42: =Safety!L33 -> 167276.4966 | K42: =Safety!M33 -> 170287.4736 | L42: =Safety!N33 -> 173352.6481 | M42: =Safety!O33 -> 176472.9958 | N42: =Safety!P33 -> 179649.5097 | O42: =Safety!Q33 -> 182883.2009 | P42: =Safety!R33 -> 186175.0985 | Q42: =Safety!S33 -> 189526.2503 | R42: =Safety!T33 -> 192937.7228 | S42: =Safety!U33 -> 196410.6018 | T42: =Safety!V33 -> 199945.9926 | U42: =Safety!W33 -> 203545.0205 | V42: =Safety!X33 -> 207208.8308 | W42: =Safety!Y33 -> 210938.5898 | Y42: =NPV(0.1,D42:W42) -> 1183583.575 | Z42: =Y42/$Z$38 -> 0.172105659
A44: =A67 -> 7 | B44: 3. Increased tourism from lower airfare costs
B45: Increased visitor spending | C45: =Tourism!N36 -> 0 | D45: =Tourism!O36 -> 0 | E45: =Tourism!P36 -> 0 | F45: =Tourism!Q36 -> 542274.824 | G45: =Tourism!R36 -> 695625.8988 | H45: =Tourism!S36 -> 708147.165 | I45: =Tourism!T36 -> 720893.814 | J45: =Tourism!U36 -> 733869.9026 | K45: =Tourism!V36 -> 747079.5609 | L45: =Tourism!W36 -> 760526.993 | M45: =Tourism!X36 -> 774216.4788 | N45: =Tourism!Y36 -> 788152.3755 | O45: =Tourism!Z36 -> 802339.1182 | P45: =Tourism!AA36 -> 816781.2224 | Q45: =Tourism!AB36 -> 831483.2844 | R45: =Tourism!AC36 -> 846449.9835 | S45: =Tourism!AD36 -> 861686.0832 | T45: =Tourism!AE36 -> 877196.4327 | U45: =Tourism!AF36 -> 892985.9685 | V45: =Tourism!AG36 -> 909059.7159 | W45: =Tourism!AH36 -> 925422.7908 | Y45: =NPV(0.1,D45:W45) -> 5073270.138 | Z45: =Y45/$Z$38 -> 0.7377075171
Z46: =SUM(Z39,Z42,Z45) -> 1
B47: Total benefits | C47: =SUM(C39,C42,C45)*'ERR & Sensitivity Analysis'!$G$11 -> 0 | D47: =SUM(D39,D42,D45)*'ERR & Sensitivity Analysis'!$G$11 -> 0 | E47: =SUM(E39,E42,E45)*'ERR & Sensitivity Analysis'!$G$11 -> 0 | F47: =SUM(F39,F42,F45)*'ERR & Sensitivity Analysis'!$G$11 -> 786150.8695 | G47: =SUM(G39,G42,G45)*'ERR & Sensitivity Analysis'!$G$11 -> 937235.7682 | H47: =SUM(H39,H42,H45)*'ERR & Sensitivity Analysis'!$G$11 -> 954106.012 | I47: =SUM(I39,I42,I45)*'ERR & Sensitivity Analysis'!$G$11 -> 971279.9203 | J47: =SUM(J39,J42,J45)*'ERR & Sensitivity Analysis'!$G$11 -> 988762.9588 | K47: =SUM(K39,K42,K45)*'ERR & Sensitivity Analysis'!$G$11 -> 1006560.692 | L47: =SUM(L39,L42,L45)*'ERR & Sensitivity Analysis'!$G$11 -> 1024678.785 | M47: =SUM(M39,M42,M45)*'ERR & Sensitivity Analysis'!$G$11 -> 1043123.003 | N47: =SUM(N39,N42,N45)*'ERR & Sensitivity Analysis'!$G$11 -> 1061899.217 | O47: =SUM(O39,O42,O45)*'ERR & Sensitivity Analysis'!$G$11 -> 1081013.403 | P47: =SUM(P39,P42,P45)*'ERR & Sensitivity Analysis'!$G$11 -> 1100471.644 | Q47: =SUM(Q39,Q42,Q45)*'ERR & Sensitivity Analysis'!$G$11 -> 1120280.133 | R47: =SUM(R39,R42,R45)*'ERR & Sensitivity Analysis'!$G$11 -> 1140445.176 | S47: =SUM(S39,S42,S45)*'ERR & Sensitivity Analysis'!$G$11 -> 1160973.189 | T47: =SUM(T39,T42,T45)*'ERR & Sensitivity Analysis'!$G$11 -> 1181870.706 | U47: =SUM(U39,U42,U45)*'ERR & Sensitivity Analysis'!$G$11 -> 1203144.379 | V47: =SUM(V39,V42,V45)*'ERR & Sensitivity Analysis'!$G$11 -> 1224800.978 | W47: =SUM(W39,W42,W45)*'ERR & Sensitivity Analysis'!$G$11 -> 1246847.396
A48: =A68 -> 8 | B48: Net local benefits | C48: =C47-C15 -> 0 | D48: =D47-D15 -> 0 | E48: 0 | F48: 786150.8695 | G48: =G47-G15 -> 937235.7682 | H48: =H47-H15 -> 883467.1238 | I48: =I47-I15 -> 900641.032 | J48: =J47-J15 -> 918124.0706 | K48: =K47-K15 -> 935921.8038 | L48: =L47-L15 -> 954039.8963 | M48: =M47-M15 -> 972484.1144 | N48: =N47-N15 -> 991260.3285 | O48: =O47-O15 -> 1010374.514 | P48: =P47-P15 -> 1029832.756 | Q48: =Q47-Q15 -> 1049641.245 | R48: =R47-R15 -> 1069806.288 | S48: =S47-S15 -> 1090334.301 | T48: =T47-T15 -> 1111231.818 | U48: =U47-U15 -> 1132505.491 | V48: =V47-V15 -> 1154162.09 | W48: =W47-W15 -> 1176208.507
B50: Net benefits | C50: =C47-C17 -> 0 | D50: -494863.3344 | E50: -4956141.828 | F50: -8154632.605 | G50: 601767.7682 | H50: 883467.1238 | I50: 900641.032 | J50: 918124.0706 | K50: 935921.8038 | L50: 954039.8963 | M50: 972484.1144 | N50: 991260.3285 | O50: 1010374.514 | P50: 1029832.756 | Q50: 1049641.245 | R50: 1069806.288 | S50: 1090334.301 | T50: 1111231.818 | U50: 1132505.491 | V50: 1154162.09 | W50: 1176208.507
B52: ERR | C52: =IRR(D50:W50) -> 0.02295461726
B54: NPV | C54: =NPV(0.1,D50:W50) -> -4992730.469
B56: PV of benefits | C56: =NPV(0.1,D48:W48) -> 6499602.386
B58: PV of costs | C58: =NPV(0.1,D17:W17) -> 11869805.76
B60: Notes
A61: 1 | B61: From the 'Costs' worksheet.
A62: 2 | B62: "Increased operation & maintenance costs" refers to the difference between the expected maintenance costs with and without project. We do not have cost figures for O&M expenses, but it is assumed that the upgraded airport will require slightly higher maintenance costs.
A63: 3 | B63: From the 'Tourism' worksheet. Shown in this worksheet for reference purposes.
A64: 4 | B64: From the 'Aircraft' worksheet.
A65: 5 | B65: From the 'Safety' worksheet.
A66: 6 | B66: An incident is any type of event that affects the flight operations such as a blown tire, overrunning the runway, hitting a bird, or an accident.
A67: 7 | B67: From the 'Tourism' worksheet.
A68: 8 | B68: Total benefits minus local costs (operation and maintenance). Used to calculate the PV of benefits for the poverty scorecard.

Sheet Costs
B1: Tanzania: Mafia Island Airport | L1: Last updated: 8/27/2014
B2: Activity Costs
C3: =IF('ERR & Sensitivity Analysis'!$I$10="N","Note: Current calculations are based on user input and are not the original MCC estimates.",IF('ERR & Sensitivity Analysis'!$I$14="N","Note: Current calculations are based on user input and are not the original MCC estimates.",0)) -> 0
A4: =A21 -> 1 | B4: Activity costs by funder | G4: Activity costs per year
B6: Component | C6: MCA-T | D6: GoT | E6: Total | G6: Compact year | H6: Y1 | I6: Y2 | J6: Y3 | K6: Y4 | L6: Y5 | M6: Y6 | N6: Total
G7: Year | H7: 2009 | I7: 2010 | J7: 2011 | K7: 2012 | L7: 2013 | M7: 2014
B8: Construction costs | C8: 11052367.95 | D8: 20000 | E8: 11072367.95 | G8: Construction costs | K8: ='ERR & Sensitivity Analysis'!G10*3410204.78 -> 3410204.78 | L8: ='ERR & Sensitivity Analysis'!G10*7642163.17 -> 7642163.17 | M8: ='ERR & Sensitivity Analysis'!G10*20000 -> 20000 | N8: =SUM(H8:M8) -> 11072367.95
B9: Supervision | C9: 1670175 | D9: 315468 | E9: 1985643 | G9: Supervision | J9: ='ERR & Sensitivity Analysis'!G10*285000 -> 285000 | K9: ='ERR & Sensitivity Analysis'!G10*645000 -> 645000 | L9: ='ERR & Sensitivity Analysis'!G10*740175 -> 740175 | M9: ='ERR & Sensitivity Analysis'!G10*315468 -> 315468 | N9: =SUM(H9:M9) -> 1985643
B10: Environmental Studies | C10: 0 | D10: 0 | E10: 0 | G10: Environmental Studies | K10: 0 | L10: 0 | M10: 0 | N10: 0
B11: Resettlement | C11: 19391.32 | D11: 0 | E11: 19391.32 | G11: Resettlement | K11: ='ERR & Sensitivity Analysis'!G10*5983.18590673681 -> 5983.185907 | L11: ='ERR & Sensitivity Analysis'!G10*13408.1340932632 -> 13408.13409 | M11: 0 | N11: 19391.32
B12: Feasibility Studies | C12: 420000 | D12: 0 | E12: 420000 | G12: Feasibility Studies | K12: ='ERR & Sensitivity Analysis'!G10*420000 -> 420000 | L12: 0 | M12: 0 | N12: 420000
B13: Technical assistance | C13: 630375.38 | D13: 0 | E13: 630375.38 | G13: Technical assistance | J13: ='ERR & Sensitivity Analysis'!G10*107567.759845525 -> 107567.7598 | K13: ='ERR & Sensitivity Analysis'!G10*243442.824913557 -> 243442.8249 | L13: ='ERR & Sensitivity Analysis'!G10*279364.795240918 -> 279364.7952 | M13: 0 | N13: 630375.38
A14: =A22 -> 2 | B14: Administrative Costs | C14: 521507.2389 | D14: 0 | E14: 521507.2389 | G14: Administrative Costs | J14: ='ERR & Sensitivity Analysis'!G10*88990.4130294155 -> 88990.41303 | K14: ='ERR & Sensitivity Analysis'!G10*201399.355803414 -> 201399.3558 | L14: ='ERR & Sensitivity Analysis'!G10*231117.47004929 -> 231117.47 | M14: 0 | N14: 521507.2389
B15: M&E Costs | C15: 77971.7479 | D15: 0 | E15: 77971.7479 | G15: M&E Costs | J15: ='ERR & Sensitivity Analysis'!G10*13305.1615266058 -> 13305.16153 | K15: ='ERR & Sensitivity Analysis'!G10*30111.6813496869 -> 30111.68135 | L15: ='ERR & Sensitivity Analysis'!G10*34554.905027914 -> 34554.90503 | M15: 0 | N15: 77971.7479
B16: Total w/o Admin, M&E | C16: =SUM(C8:C13) -> 13792309.65 | D16: =SUM(D8:D13) -> 335468 | E16: =SUM(E8:E13) -> 14127777.65 | G16: Total w/o Admin, M&E | H16: =SUM(H8:H13) -> 0 | I16: 0 | J16: 392567.7598 | K16: 4724630.791 | L16: 8675111.099 | M16: 335468 | N16: 14127777.65
B17: Total | E17: =SUM(E8:E15) -> 14727256.64 | G17: Total | H17: =SUM(H8:H15) -> 0 | I17: 0 | J17: 494863.3344 | K17: 4956141.828 | L17: 8940783.474 | M17: 335468 | N17: 14727256.64
G19: PV of investment costs | H19: =NPV(0.1,J17:M17) -> 11492332.85 | N19: 6620000
B20: Notes | N20: =(N16-N19)/N19 -> 1.134105385
A21: 1 | B21: Activity costs from Q20 MCA-T Detailed Financial Plan and Q22 GoT Detailed Financial Plan.
A22: 2 | B22: Administrative and M&E costs are based on a share of compact administrative and M&E costs, proportional to activity cost.

Sheet Aircraft
B1: Tanzania: Mafia Island Airport | C1: =IF('ERR & Sensitivity Analysis'!$I$10="N","Note: Current calculations are based on user input and are not the original MCC estimates.",IF('ERR & Sensitivity Analysis'!$I$14="N","Note: Current calculations are based on user input and are not the original MCC estimates.",0)) -> 0 | K1: Last updated: 8/27/2014
B2: Aircraft Operating Costs | E2: <--------------------- Compact Period ---------------------->
B3: Project year | C3: -2 | D3: -1 | E3: 0 | F3: 1 | G3: 2 | H3: 3 | I3: 4 | J3: 5 | K3: 6 | L3: 7 | M3: 8 | N3: 9 | O3: 10 | P3: 11 | Q3: 12 | R3: 13 | S3: 14 | T3: 15 | U3: 16 | V3: 17 | W3: 18 | X3: 19 | Y3: 20
A4: Notes | B4: Year | C4: 2008 | D4: 2009 | E4: 2010 | F4: 2011 | G4: 2012 | H4: 2013 | I4: 2014 | J4: 2015 | K4: 2016 | L4: 2017 | M4: 2018 | N4: 2019 | O4: 2020 | P4: 2021 | Q4: 2022 | R4: 2023 | S4: 2024 | T4: 2025 | U4: 2026 | V4: 2027 | W4: 2028 | X4: 2029 | Y4: 2030
B5: Without Project
B6: Inbound flights | C6: =Tourism!L6 -> 1527 | D6: =Tourism!M6 -> 1526 | E6: =Tourism!N6 -> 1444 | F6: =Tourism!O6 -> 1394 | G6: =Tourism!P6 -> 1462 | H6: =Tourism!Q6 -> 1488.316 | I6: =Tourism!R6 -> 1515.105688 | J6: =Tourism!S6 -> 1542.37759 | K6: =Tourism!T6 -> 1570.140387 | L6: =Tourism!U6 -> 1598.402914 | M6: =Tourism!V6 -> 1627.174166 | N6: =Tourism!W6 -> 1656.463301 | O6: =Tourism!X6 -> 1686.279641 | P6: =Tourism!Y6 -> 1716.632674 | Q6: =Tourism!Z6 -> 1747.532063 | R6: =Tourism!AA6 -> 1778.98764 | S6: =Tourism!AB6 -> 1811.009417 | T6: =Tourism!AC6 -> 1843.607587 | U6: =Tourism!AD6 -> 1876.792523 | V6: =Tourism!AE6 -> 1910.574789 | W6: =Tourism!AF6 -> 1944.965135 | X6: =Tourism!AG6 -> 1979.974507 | Y6: =Tourism!AH6 -> 2015.614048
B7: Aircraft movements | C7: =C6*2 -> 3054 | D7: =D6*2 -> 3052 | E7: 2888 | F7: 2788 | G7: 2924 | H7: 2976.632 | I7: 3030.211376 | J7: 3084.755181 | K7: 3140.280774 | L7: 3196.805828 | M7: 3254.348333 | N7: 3312.926603 | O7: 3372.559282 | P7: 3433.265349 | Q7: 3495.064125 | R7: 3557.975279 | S7: 3622.018834 | T7: 3687.215173 | U7: 3753.585046 | V7: 3821.149577 | W7: 3889.93027 | X7: 3959.949015 | Y7: 4031.228097
B8: Inbound flights per day | C8: =C6/365 -> 4.183561644 | D8: =D6/365 -> 4.180821918 | E8: 3.956164384 | F8: 3.819178082 | G8: 4.005479452 | H8: 4.077578082 | I8: 4.150974488 | J8: 4.225692028 | K8: 4.301754485 | L8: 4.379186066 | M8: 4.458011415 | N8: 4.53825562 | O8: 4.619944222 | P8: 4.703103217 | Q8: 4.787759075 | R8: 4.873938739 | S8: 4.961669636 | T8: 5.05097969 | U8: 5.141897324 | V8: 5.234451476 | W8: 5.328671602 | X8: 5.424587691 | Y8: 5.52223027
B10: Passenger arrivals | C10: =Tourism!L10 -> 8939 | D10: =Tourism!M10 -> 9523 | E10: =Tourism!N10 -> 9671 | F10: =Tourism!O10 -> 9676 | G10: =Tourism!P10 -> 9733 | H10: =Tourism!Q10 -> 9908.194 | I10: =Tourism!R10 -> 10086.54149 | J10: =Tourism!S10 -> 10268.09924 | K10: =Tourism!T10 -> 10452.92503 | L10: =Tourism!U10 -> 10641.07768 | M10: =Tourism!V10 -> 10832.61707 | N10: =Tourism!W10 -> 11027.60418 | O10: =Tourism!X10 -> 11226.10106 | P10: =Tourism!Y10 -> 11428.17088 | Q10: =Tourism!Z10 -> 11633.87795 | R10: =Tourism!AA10 -> 11843.28775 | S10: =Tourism!AB10 -> 12056.46693 | T10: =Tourism!AC10 -> 12273.48334 | U10: =Tourism!AD10 -> 12494.40604 | V10: =Tourism!AE10 -> 12719.30535 | W10: =Tourism!AF10 -> 12948.25284 | X10: =Tourism!AG10 -> 13181.32139 | Y10: =Tourism!AH10 -> 13418.58518
B11: Passengers per flight | C11: =C10/C6 -> 5.853962017 | D11: =D10/D6 -> 6.240498034 | E11: 6.697368421 | F11: 6.941176471 | G11: 6.657318741 | H11: 6.657318741 | I11: 6.657318741 | J11: 6.657318741 | K11: 6.657318741 | L11: 6.657318741 | M11: 6.657318741 | N11: 6.657318741 | O11: 6.657318741 | P11: 6.657318741 | Q11: 6.657318741 | R11: 6.657318741 | S11: 6.657318741 | T11: 6.657318741 | U11: 6.657318741 | V11: 6.657318741 | W11: 6.657318741 | X11: =X10/X6 -> 6.657318741 | Y11: =Y10/Y6 -> 6.657318741
B13: Routine aircraft maintenance hours per year | C13: =C8*mnt_hrs -> 849.2630137 | D13: =D8*mnt_hrs -> 848.7068493 | E13: 803.1013699 | F13: 775.2931507 | G13: 813.1123288 | H13: 827.7483507 | I13: 842.647821 | J13: 857.8154818 | K13: 873.2561604 | L13: 888.9747713 | M13: 904.9763172 | N13: 921.2658909 | O13: 937.848677 | P13: 954.7299532 | Q13: 971.9150923 | R13: 989.409564 | S13: 1007.218936 | T13: 1025.348877 | U13: 1043.805157 | V13: 1062.59365 | W13: 1081.720335 | X13: 1101.191301 | Y13: 1121.012745
B14: Routine aircraft maintenance costs per year | C14: =C13*mnt_cost -> 179219.9738 | D14: =D13*mnt_cost -> 179102.6064 | E14: 169478.4821 | F14: 163610.1136 | G14: 171591.0947 | H14: 174679.7344 | I14: 177823.9697 | J14: 181024.8011 | K14: 184283.2475 | L14: 187600.346 | M14: 190977.1522 | N14: 194414.741 | O14: 197914.2063 | P14: 201476.662 | Q14: 205103.2419 | R14: 208795.1003 | S14: 212553.4121 | T14: 216379.3735 | U14: 220274.2022 | V14: 224239.1379 | W14: 228275.4424 | X14: 232384.4003 | Y14: 236567.3195
B16: Foreign object damage (FOD) runway strikes per year | C16: =C7*FOD/10^4 -> 0.48864 | D16: 0.48832 | E16: 0.46208 | F16: 0.44608 | G16: 0.46784 | H16: 0.47626112 | I16: 0.4848338202 | J16: 0.4935608289 | K16: 0.5024449238 | L16: 0.5114889325 | M16: 0.5206957333 | N16: 0.5300682565 | O16: 0.5396094851 | P16: 0.5493224558 | Q16: 0.55921026 | R16: 0.5692760447 | S16: 0.5795230135 | T16: 0.5899544277 | U16: 0.6005736074 | V16: 0.6113839324 | W16: 0.6223888432 | X16: 0.6335918423 | Y16: 0.6449964955
A17: =A50 -> 1 | B17: Foreign object damage (FOD) aircraft repair costs per year | C17: =C7*FOD_cost/10^4 -> 7138.926564 | D17: 7134.251432 | E17: 6750.890608 | F17: 6517.134008 | G17: 6835.042984 | H17: 6958.073758 | I17: 7083.319085 | J17: 7210.818829 | K17: 7340.613568 | L17: 7472.744612 | M17: 7607.254015 | N17: 7744.184587 | O17: 7883.57991 | P17: 8025.484348 | Q17: 8169.943067 | R17: 8317.002042 | S17: 8466.708078 | T17: 8619.108824 | U17: 8774.252783 | V17: 8932.189333 | W17: 9092.968741 | X17: 9256.642178 | Y17: 9423.261737
A18: =A51 -> 2 | B18: Lost revenue from disabled aircraft | C18: =airfare*C11*C16*FOD_days -> 686.5152 | D18: =airfare*D11*D16 -> 731.3664 | E18: 742.7328 | F18: 743.1168 | G18: 747.4944 | H18: 760.9492992 | I18: 774.6463866 | J18: 788.5900215 | K18: 802.7846419 | L18: 817.2347655 | M18: 831.9449913 | N18: 846.9200011 | O18: 862.1645611 | P18: 877.6835232 | Q18: 893.4818266 | R18: 909.5644995 | S18: 925.9366605 | T18: 942.6035204 | U18: 959.5703838 | V18: 976.8426507 | W18: 994.4258184 | X18: 1012.325483 | Y18: 1030.547342
B20: Total cost of FOD strikes per year | C20: =SUM(C17:C18) -> 7825.441764 | D20: 7865.617832 | E20: 7493.623408 | F20: 7260.250808 | G20: 7582.537384 | H20: 7719.023057 | I20: 7857.965472 | J20: 7999.40885 | K20: 8143.39821 | L20: 8289.979378 | M20: 8439.199006 | N20: 8591.104588 | O20: 8745.744471 | P20: 8903.167871 | Q20: 9063.424893 | R20: 9226.566541 | S20: 9392.644739 | T20: 9561.712344 | U20: 9733.823166 | V20: 9909.031983 | W20: 10087.39456 | X20: 10268.96766 | Y20: 10453.80908
B23: With Project
B24: Inbound flights | C24: =Tourism!L22 -> 1527 | D24: =Tourism!M22 -> 1526 | E24: =Tourism!N22 -> 1444 | F24: =Tourism!O22 -> 1394 | G24: =Tourism!P22 -> 1462 | H24: =Tourism!Q22 -> 1605 | I24: =Tourism!R22 -> 1669.2 | J24: =Tourism!S22 -> 1699.2456 | K24: =Tourism!T22 -> 1729.832021 | L24: =Tourism!U22 -> 1760.968997 | M24: =Tourism!V22 -> 1792.666439 | N24: =Tourism!W22 -> 1824.934435 | O24: =Tourism!X22 -> 1857.783255 | P24: =Tourism!Y22 -> 1891.223353 | Q24: =Tourism!Z22 -> 1925.265374 | R24: =Tourism!AA22 -> 1959.920151 | S24: =Tourism!AB22 -> 1995.198713 | T24: =Tourism!AC22 -> 2031.11229 | U24: =Tourism!AD22 -> 2067.672311 | V24: =Tourism!AE22 -> 2104.890413 | W24: =Tourism!AF22 -> 2142.77844 | X24: =Tourism!AG22 -> 2181.348452 | Y24: =Tourism!AH22 -> 2220.612724
B25: Aircraft movements | C25: =C24*2 -> 3054 | D25: =D24*2 -> 3052 | E25: 2888 | F25: 2788 | G25: 2924 | H25: 3210 | I25: 3338.4 | J25: 3398.4912 | K25: 3459.664042 | L25: 3521.937994 | M25: 3585.332878 | N25: 3649.86887 | O25: 3715.56651 | P25: 3782.446707 | Q25: 3850.530748 | R25: 3919.840301 | S25: 3990.397426 | T25: 4062.22458 | U25: 4135.344623 | V25: 4209.780826 | W25: 4285.556881 | X25: 4362.696905 | Y25: 4441.225449
B26: Inbound flights per day | C26: =C24/365 -> 4.183561644 | D26: =D24/365 -> 4.180821918 | E26: 3.956164384 | F26: 3.819178082 | G26: 4.005479452 | H26: 4.397260274 | I26: 4.573150685 | J26: 4.655467397 | K26: 4.73926581 | L26: 4.824572595 | M26: 4.911414902 | N26: 4.99982037 | O26: 5.089817137 | P26: 5.181433845 | Q26: 5.274699654 | R26: 5.369644248 | S26: 5.466297845 | T26: 5.564691206 | U26: 5.664855647 | V26: 5.766823049 | W26: 5.870625864 | X26: 5.97629713 | Y26: 6.083870478
B28: Passenger arrivals | C28: =Tourism!L26 -> 8939 | D28: =Tourism!M26 -> 9523 | E28: =Tourism!N26 -> 9671 | F28: =Tourism!O26 -> 9676 | G28: =Tourism!P26 -> 9733 | H28: =Tourism!Q26 -> 10806 | I28: =Tourism!R26 -> 11238.24 | J28: =Tourism!S26 -> 11440.52832 | K28: =Tourism!T26 -> 11646.45783 | L28: =Tourism!U26 -> 11856.09407 | M28: =Tourism!V26 -> 12069.50376 | N28: =Tourism!W26 -> 12286.75483 | O28: =Tourism!X26 -> 12507.91642 | P28: =Tourism!Y26 -> 12733.05891 | Q28: =Tourism!Z26 -> 12962.25397 | R28: =Tourism!AA26 -> 13195.57455 | S28: =Tourism!AB26 -> 13433.09489 | T28: =Tourism!AC26 -> 13674.8906 | U28: =Tourism!AD26 -> 13921.03863 | V28: =Tourism!AE26 -> 14171.61732 | W28: =Tourism!AF26 -> 14426.70643 | X28: =Tourism!AG26 -> 14686.38715 | Y28: =Tourism!AH26 -> 14950.74212
B29: Passengers per flight | C29: =C28/C24 -> 5.853962017 | D29: =D28/D24 -> 6.240498034 | E29: 6.697368421 | F29: 6.941176471 | G29: 6.657318741 | H29: 6.73271028 | I29: 6.73271028 | J29: 6.73271028 | K29: 6.73271028 | L29: 6.73271028 | M29: 6.73271028 | N29: 6.73271028 | O29: 6.73271028 | P29: 6.73271028 | Q29: 6.73271028 | R29: 6.73271028 | S29: 6.73271028 | T29: 6.73271028 | U29: 6.73271028 | V29: 6.73271028 | W29: 6.73271028 | X29: 6.73271028 | Y29: 6.73271028
B31: Routine aircraft maintenance hours per year | C31: =C26*mnt_hrs -> 849.2630137 | D31: =D26*mnt_hrs -> 848.7068493 | E31: 803.1013699 | F31: 775.2931507 | G31: 813.1123288 | H31: =H26*mnt_hrs*(1-mnt_red) -> 446.3219178 | I31: 464.1747945 | J31: 472.5299408 | K31: 481.0354798 | L31: 489.6941184 | M31: 498.5086125 | N31: 507.4817675 | O31: 516.6164394 | P31: 525.9155353 | Q31: 535.3820149 | R31: 545.0188912 | S31: 554.8292312 | T31: 564.8161574 | U31: 574.9828482 | V31: 585.3325395 | W31: 595.8685252 | X31: 606.5941586 | Y31: 617.5128535
B32: Routine aircraft maintenance costs per year | C32: =C31*mnt_cost -> 179219.9738 | D32: 179102.6064 | E32: 169478.4821 | F32: 163610.1136 | G32: 171591.0947 | H32: 94187.31432 | I32: 97954.80689 | J32: 99717.99341 | K32: 101512.9173 | L32: 103340.1498 | M32: 105200.2725 | N32: 107093.8774 | O32: 109021.5672 | P32: 110983.9554 | Q32: 112981.6666 | R32: 115015.3366 | S32: 117085.6127 | T32: 119193.1537 | U32: 121338.6305 | V32: 123522.7258 | W32: 125746.1349 | X32: 128009.5653 | Y32: 130313.7375
B34: Total aircraft routine maintenance savings per year | C34: =C14-C32 -> 0 | D34: 0 | E34: 0 | F34: 0 | G34: 0 | H34: =H14-H32 -> 80492.42013 | I34: 79869.16278 | J34: 81306.80771 | K34: 82770.33025 | L34: 84260.19619 | M34: 85776.87972 | N34: 87320.86356 | O34: 88892.6391 | P34: =P14-P32 -> 90492.7066 | Q34: 92121.57532 | R34: 93779.76368 | S34: 95467.79943 | T34: 97186.21982 | U34: 98935.57177 | V34: 100716.4121 | W34: 102529.3075 | X34: 104374.835 | Y34: 106253.582
B36: Foreign object damage (FOD) runway strikes per year | C36: =C16 -> 0.48864 | D36: =D16 -> 0.48832 | E36: =E16 -> 0.46208 | F36: =F16 -> 0.44608 | G36: =G16 -> 0.46784 | H36: =H16*(1-FOD_red) -> 0.23813056 | I36: 0.2424169101 | J36: 0.2467804145 | K36: 0.2512224619 | L36: 0.2557444662 | M36: 0.2603478666 | N36: 0.2650341282 | O36: 0.2698047425 | P36: 0.2746612279 | Q36: 0.27960513 | R36: 0.2846380223 | S36: 0.2897615067 | T36: 0.2949772139 | U36: 0.3002868037 | V36: 0.3056919662 | W36: 0.3111944216 | X36: 0.3167959212 | Y36: 0.3224982477
B37: Foreign object damage (FOD) repair costs per year | C37: =C25*FOD_cost/10^4 -> 7138.926564 | D37: =D25*FOD_cost/10^4 -> 7134.251432 | E37: =E25*FOD_cost/10^4 -> 6750.890608 | F37: =F25*FOD_cost/10^4 -> 6517.134008 | G37: =G25*FOD_cost/10^4 -> 6835.042984 | H37: =H25*(1-FOD_red)*FOD_cost/10^4 -> 3751.79343 | I37: =I25*(1-FOD_red)*FOD_cost/10^4 -> 3901.865167 | J37: 3972.09874 | K37: 4043.596518 | L37: 4116.381255 | M37: 4190.476117 | N37: 4265.904688 | O37: 4342.690972 | P37: 4420.859409 | Q37: 4500.434879 | R37: 4581.442707 | S37: 4663.908675 | T37: 4747.859031 | U37: 4833.320494 | V37: 4920.320263 | W37: 5008.886028 | X37: 5099.045976 | Y37: 5190.828804
B38: Lost revenue from disabled aircraft | C38: =airfare*C29*C36*FOD_days -> 686.5152 | D38: 731.3664 | E38: 742.7328 | F38: 743.1168 | G38: 747.4944 | H38: 384.7833767 | I38: 391.7094774 | J38: 398.760248 | K38: 405.9379325 | L38: 413.2448153 | M38: 420.6832219 | N38: 428.2555199 | O38: 435.9641193 | P38: 443.8114735 | Q38: 451.80008 | R38: 459.9324814 | S38: 468.2112661 | T38: 476.6390689 | U38: 485.2185721 | V38: 493.9525064 | W38: 502.8436515 | X38: 511.8948372 | Y38: 521.1089443
B40: Total cost of FOD strikes per year | C40: =SUM(C37:C38) -> 7825.441764 | D40: =SUM(D37:D38) -> 7865.617832 | E40: 7493.623408 | F40: 7260.250808 | G40: 7582.537384 | H40: 4136.576807 | I40: 4293.574645 | J40: 4370.858988 | K40: 4449.53445 | L40: 4529.62607 | M40: 4611.159339 | N40: 4694.160207 | O40: 4778.655091 | P40: 4864.670883 | Q40: 4952.234959 | R40: 5041.375188 | S40: 5132.119941 | T40: 5224.4981 | U40: 5318.539066 | V40: 5414.272769 | W40: 5511.729679 | X40: 5610.940813 | Y40: 5711.937748
B42: FOD cost savings per year | C42: =C20-C40 -> 0 | D42: 0 | E42: 0 | F42: 0 | G42: 0 | H42: 3582.44625 | I42: =I17-I37 -> 3181.453918 | J42: 3238.720089 | K42: 3297.01705 | L42: 3356.363357 | M42: 3416.777898 | N42: 3478.2799 | O42: 3540.888938 | P42: 3604.624939 | Q42: 3669.508188 | R42: 3735.559335 | S42: 3802.799403 | T42: 3871.249792 | U42: 3940.932289 | V42: 4011.86907 | W42: 4084.082713 | X42: 4157.596202 | Y42: 4232.432934
B44: Total aircraft operating cost savings per year | C44: =SUM(C34,C42) -> 0 | D44: =SUM(D34,D42) -> 0 | E44: 0 | F44: 0 | G44: 0 | H44: =SUM(H34,H42) -> 84074.86638 | I44: 83050.6167 | J44: 84545.5278 | K44: 86067.3473 | L44: 87616.55955 | M44: 89193.65762 | N44: 90799.14346 | O44: 92433.52804 | P44: 94097.33154 | Q44: 95791.08351 | R44: 97515.32301 | S44: 99270.59883 | T44: 101057.4696 | U44: 102876.5041 | V44: 104728.2811 | W44: 106613.3902 | X44: 108532.4312 | Y44: 110486.015 | AA44: Avg Post-Project
B45: Aircraft operating cost savings per inbound flight | C45: =C44/C24 -> 0 | D45: =D44/D24 -> 0 | E45: 0 | F45: 0 | G45: 0 | H45: =H44/H24 -> 52.38309432 | I45: 49.75474281 | J45: 49.75474281 | K45: 49.75474281 | L45: 49.75474281 | M45: 49.75474281 | N45: 49.75474281 | O45: 49.75474281 | P45: 49.75474281 | Q45: 49.75474281 | R45: 49.75474281 | S45: 49.75474281 | T45: 49.75474281 | U45: 49.75474281 | V45: 49.75474281 | W45: 49.75474281 | X45: 49.75474281 | Y45: 49.75474281 | AA45: =AVERAGE(H45:Y45) -> 49.90076234
B46: Aircraft operating cost savings per passenger arrival | C46: =C44/C28 -> 0 | D46: =D44/D28 -> 0 | E46: 0 | F46: 0 | G46: 0 | H46: =H44/H28 -> 7.780387413 | I46: 7.390002055 | J46: 7.390002055 | K46: 7.390002055 | L46: 7.390002055 | M46: 7.390002055 | N46: 7.390002055 | O46: 7.390002055 | P46: 7.390002055 | Q46: 7.390002055 | R46: 7.390002055 | S46: 7.390002055 | T46: 7.390002055 | U46: 7.390002055 | V46: 7.390002055 | W46: 7.390002055 | X46: 7.390002055 | Y46: 7.390002055 | AA46: =AVERAGE(H46:Y46) -> 7.411690131
B49: Notes
A50: 1 | B50: McCreary (2010), Average cost of FOD damage on a runway per 10K movements. FOD is foreign object debris. This may include nails, plastic bags, or anything that can obstruct airplane movements along the runway.
A51: 2 | B51: Assuming repair would take 1 day and that Costal Aviation would use the same plane for both flights.

Sheet Safety
B1: Tanzania: Mafia Island Airport | C1: =IF('ERR & Sensitivity Analysis'!$I$10="N","Note: Current calculations are based on user input and are not the original MCC estimates.",IF('ERR & Sensitivity Analysis'!$I$14="N","Note: Current calculations are based on user input and are not the original MCC estimates.",0)) -> 0 | L1: Last updated: 8/27/2014
B2: Safety Benefits | C2: <-------------------------- Compact Period --------------------------->
B3: Project year | C3: -2 | D3: -1 | E3: 0 | F3: 1 | G3: 2 | H3: 3 | I3: 4 | J3: 5 | K3: 6 | L3: 7 | M3: 8 | N3: 9 | O3: 10 | P3: 11 | Q3: 12 | R3: 13 | S3: 14 | T3: 15 | U3: 16 | V3: 17 | W3: 18 | X3: 19 | Y3: 20
A4: Notes | B4: Year | C4: 2008 | D4: 2009 | E4: 2010 | F4: 2011 | G4: 2012 | H4: 2013 | I4: 2014 | J4: 2015 | K4: 2016 | L4: 2017 | M4: 2018 | N4: 2019 | O4: 2020 | P4: 2021 | Q4: 2022 | R4: 2023 | S4: 2024 | T4: 2025 | U4: 2026 | V4: 2027 | W4: 2028 | X4: 2029 | Y4: 2030
B5: Without Project
B6: Inbound flights | C6: =Tourism!L6 -> 1527 | D6: =Tourism!M6 -> 1526 | E6: =Tourism!N6 -> 1444 | F6: =Tourism!O6 -> 1394 | G6: =Tourism!P6 -> 1462 | H6: =Tourism!Q6 -> 1488.316 | I6: =Tourism!R6 -> 1515.105688 | J6: =Tourism!S6 -> 1542.37759 | K6: =Tourism!T6 -> 1570.140387 | L6: =Tourism!U6 -> 1598.402914 | M6: =Tourism!V6 -> 1627.174166 | N6: =Tourism!W6 -> 1656.463301 | O6: =Tourism!X6 -> 1686.279641 | P6: =Tourism!Y6 -> 1716.632674 | Q6: =Tourism!Z6 -> 1747.532063 | R6: =Tourism!AA6 -> 1778.98764 | S6: =Tourism!AB6 -> 1811.009417 | T6: =Tourism!AC6 -> 1843.607587 | U6: =Tourism!AD6 -> 1876.792523 | V6: =Tourism!AE6 -> 1910.574789 | W6: =Tourism!AF6 -> 1944.965135 | X6: =Tourism!AG6 -> 1979.974507 | Y6: =Tourism!AH6 -> 2015.614048
A7: =A39 -> 1 | B7: Aircraft movements | C7: =C6*2 -> 3054 | D7: =D6*2 -> 3052 | E7: 2888 | F7: 2788 | G7: 2924 | H7: 2976.632 | I7: 3030.211376 | J7: 3084.755181 | K7: 3140.280774 | L7: 3196.805828 | M7: 3254.348333 | N7: 3312.926603 | O7: 3372.559282 | P7: 3433.265349 | Q7: 3495.064125 | R7: 3557.975279 | S7: 3622.018834 | T7: 3687.215173 | U7: 3753.585046 | V7: 3821.149577 | W7: 3889.93027 | X7: 3959.949015 | Y7: 4031.228097
B8: Passenger arrivals | C8: =Tourism!L10 -> 8939 | D8: =Tourism!M10 -> 9523 | E8: =Tourism!N10 -> 9671 | F8: =Tourism!O10 -> 9676 | G8: =Tourism!P10 -> 9733 | H8: =Tourism!Q10 -> 9908.194 | I8: =Tourism!R10 -> 10086.54149 | J8: =Tourism!S10 -> 10268.09924 | K8: =Tourism!T10 -> 10452.92503 | L8: =Tourism!U10 -> 10641.07768 | M8: =Tourism!V10 -> 10832.61707 | N8: =Tourism!W10 -> 11027.60418 | O8: =Tourism!X10 -> 11226.10106 | P8: =Tourism!Y10 -> 11428.17088 | Q8: =Tourism!Z10 -> 11633.87795 | R8: =Tourism!AA10 -> 11843.28775 | S8: =Tourism!AB10 -> 12056.46693 | T8: =Tourism!AC10 -> 12273.48334 | U8: =Tourism!AD10 -> 12494.40604 | V8: =Tourism!AE10 -> 12719.30535 | W8: =Tourism!AF10 -> 12948.25284 | X8: =Tourism!AG10 -> 13181.32139 | Y8: =Tourism!AH10 -> 13418.58518
B9: Passengers per flight | C9: =C8/C6 -> 5.853962017 | D9: =D8/D6 -> 6.240498034 | E9: 6.697368421 | F9: 6.941176471 | G9: 6.657318741 | H9: 6.657318741 | I9: 6.657318741 | J9: 6.657318741 | K9: 6.657318741 | L9: 6.657318741 | M9: 6.657318741 | N9: 6.657318741 | O9: 6.657318741 | P9: 6.657318741 | Q9: 6.657318741 | R9: 6.657318741 | S9: 6.657318741 | T9: 6.657318741 | U9: 6.657318741 | V9: 6.657318741 | W9: 6.657318741 | X9: 6.657318741 | Y9: 6.657318741
A11: =A40 -> 2 | B11: Aviation incidents | C11: =C7*incident/10^4 -> 0.161862 | D11: 0.161756 | E11: 0.153064 | F11: 0.147764 | G11: 0.154972 | H11: 0.157761496 | I11: 0.1606012029 | J11: 0.1634920246 | K11: 0.166434881 | L11: 0.1694307089 | M11: 0.1724804616 | N11: 0.17558511 | O11: 0.1787456419 | P11: 0.1819630635 | Q11: 0.1852383986 | R11: 0.1885726898 | S11: 0.1919669982 | T11: 0.1954224042 | U11: 0.1989400075 | V11: 0.2025209276 | W11: 0.2061663043 | X11: 0.2098772978 | Y11: 0.2136550891
A12: 3 | B12: Fatal accidents | C12: =C7*fatal/10^6 -> 0.0158808 | D12: 0.0158704 | E12: 0.0150176 | F12: 0.0144976 | G12: 0.0152048 | H12: 0.0154784864 | I12: 0.01575709916 | J12: 0.01604072694 | K12: 0.01632946002 | L12: 0.01662339031 | M12: 0.01692261133 | N12: 0.01722721833 | O12: 0.01753730826 | P12: 0.01785297981 | Q12: 0.01817433345 | R12: 0.01850147145 | S12: 0.01883449794 | T12: 0.0191735189 | U12: 0.01951864224 | V12: 0.0198699778 | W12: 0.0202276374 | X12: 0.02059173488 | Y12: 0.0209623861
A14: =A42 -> 4 | B14: Hull insurance claims | C14: =C11*hull -> 339910.2 | D14: 339687.6 | E14: 321434.4 | F14: 310304.4 | G14: 325441.2 | H14: 331299.1416 | I14: 337262.5261 | J14: 343333.2516 | K14: 349513.2501 | L14: 355804.4887 | M14: 362208.9694 | N14: 368728.7309 | O14: 375365.8481 | P14: 382122.4333 | Q14: 389000.6371 | R14: 396002.6486 | S14: 403130.6963 | T14: 410387.0488 | U14: 417774.0157 | V14: 425293.948 | W14: 432949.239 | X14: 440742.3253 | Y14: 448675.6872
A15: =A43 -> 5 | B15: Liability insurance claims | C15: =C12*C9*liability -> 14163.95992 | D15: 15089.31539 | E15: 15323.82329 | F15: 15331.74585 | G15: 15422.06308 | H15: 15699.66022 | I15: 15982.2541 | J15: 16269.93468 | K15: 16562.7935 | L15: 16860.92378 | M15: 17164.42041 | N15: 17473.37998 | O15: 17787.90082 | P15: 18108.08303 | Q15: 18434.02853 | R15: 18765.84104 | S15: 19103.62618 | T15: 19447.49145 | U15: 19797.5463 | V15: 20153.90213 | W15: 20516.67237 | X15: 20885.97247 | Y15: 21261.91998
B17: Total insurance claims | C17: =SUM(C14:C15) -> 354074.1599 | D17: =SUM(D14:D15) -> 354776.9154 | E17: 336758.2233 | F17: 325636.1459 | G17: 340863.2631 | H17: 346998.8018 | I17: 353244.7803 | J17: 359603.1863 | K17: 366076.0436 | L17: 372665.4124 | M17: 379373.3899 | N17: 386202.1109 | O17: 393153.7489 | P17: 400230.5164 | Q17: 407434.6656 | R17: 414768.4896 | S17: 422234.3224 | T17: 429834.5402 | U17: 437571.562 | V17: 445447.8501 | W17: 453465.9114 | X17: 461628.2978 | Y17: 469937.6072
B19: With Project
B20: Inbound flights | C20: =Tourism!L22 -> 1527 | D20: =Tourism!M22 -> 1526 | E20: =Tourism!N22 -> 1444 | F20: =Tourism!O22 -> 1394 | G20: =Tourism!P22 -> 1462 | H20: =Tourism!Q22 -> 1605 | I20: =Tourism!R22 -> 1669.2 | J20: =Tourism!S22 -> 1699.2456 | K20: =Tourism!T22 -> 1729.832021 | L20: =Tourism!U22 -> 1760.968997 | M20: =Tourism!V22 -> 1792.666439 | N20: =Tourism!W22 -> 1824.934435 | O20: =Tourism!X22 -> 1857.783255 | P20: =Tourism!Y22 -> 1891.223353 | Q20: =Tourism!Z22 -> 1925.265374 | R20: =Tourism!AA22 -> 1959.920151 | S20: =Tourism!AB22 -> 1995.198713 | T20: =Tourism!AC22 -> 2031.11229 | U20: =Tourism!AD22 -> 2067.672311 | V20: =Tourism!AE22 -> 2104.890413 | W20: =Tourism!AF22 -> 2142.77844 | X20: =Tourism!AG22 -> 2181.348452 | Y20: =Tourism!AH22 -> 2220.612724
B21: Aircraft movements | C21: =C20*2 -> 3054 | D21: 3052 | E21: 2888 | F21: 2788 | G21: 2924 | H21: 3210 | I21: 3338.4 | J21: 3398.4912 | K21: 3459.664042 | L21: 3521.937994 | M21: 3585.332878 | N21: 3649.86887 | O21: 3715.56651 | P21: 3782.446707 | Q21: 3850.530748 | R21: 3919.840301 | S21: 3990.397426 | T21: 4062.22458 | U21: 4135.344623 | V21: 4209.780826 | W21: 4285.556881 | X21: 4362.696905 | Y21: 4441.225449
B22: Passenger arrivals | C22: =Tourism!L26 -> 8939 | D22: =Tourism!M26 -> 9523 | E22: =Tourism!N26 -> 9671 | F22: =Tourism!O26 -> 9676 | G22: =Tourism!P26 -> 9733 | H22: =Tourism!Q26 -> 10806 | I22: =Tourism!R26 -> 11238.24 | J22: =Tourism!S26 -> 11440.52832 | K22: =Tourism!T26 -> 11646.45783 | L22: =Tourism!U26 -> 11856.09407 | M22: =Tourism!V26 -> 12069.50376 | N22: =Tourism!W26 -> 12286.75483 | O22: =Tourism!X26 -> 12507.91642 | P22: =Tourism!Y26 -> 12733.05891 | Q22: =Tourism!Z26 -> 12962.25397 | R22: =Tourism!AA26 -> 13195.57455 | S22: =Tourism!AB26 -> 13433.09489 | T22: =Tourism!AC26 -> 13674.8906 | U22: =Tourism!AD26 -> 13921.03863 | V22: =Tourism!AE26 -> 14171.61732 | W22: =Tourism!AF26 -> 14426.70643 | X22: =Tourism!AG26 -> 14686.38715 | Y22: =Tourism!AH26 -> 14950.74212
B23: Passengers per flight | C23: =C22/C20 -> 5.853962017 | D23: =D22/D20 -> 6.240498034 | E23: 6.697368421 | F23: 6.941176471 | G23: 6.657318741 | H23: 6.73271028 | I23: 6.73271028 | J23: 6.73271028 | K23: 6.73271028 | L23: 6.73271028 | M23: 6.73271028 | N23: 6.73271028 | O23: 6.73271028 | P23: 6.73271028 | Q23: 6.73271028 | R23: 6.73271028 | S23: 6.73271028 | T23: 6.73271028 | U23: 6.73271028 | V23: 6.73271028 | W23: 6.73271028 | X23: 6.73271028 | Y23: 6.73271028
A25: =A44 -> 6 | B25: Aviation incidents | C25: =C11 -> 0.161862 | D25: 0.161756 | E25: 0.153064 | F25: 0.147764 | G25: 0.154972 | H25: =H21*(1-incident_red)*incident/10^4 -> 0.085065 | I25: 0.0884676 | J25: 0.0900600168 | K25: 0.0916810971 | L25: 0.09333135685 | M25: 0.09501132127 | N25: 0.09672152506 | O25: 0.09846251251 | P25: 0.1002348377 | Q25: 0.1020390648 | R25: 0.103875768 | S25: 0.1057455318 | T25: 0.1076489514 | U25: 0.1095866325 | V25: 0.1115591919 | W25: 0.1135672573 | X25: 0.115611468 | Y25: 0.1176924744
B26: Fatal accidents | C26: 0.0158808 | D26: 0.0158704 | E26: 0.0150176 | F26: 0.0144976 | G26: 0.0152048 | H26: =H21*(1-incident_red)*fatal/10^6 -> 0.008346 | I26: 0.00867984 | J26: 0.00883607712 | K26: 0.008995126508 | L26: 0.009157038785 | M26: 0.009321865483 | N26: 0.009489659062 | O26: 0.009660472925 | P26: 0.009834361438 | Q26: 0.01001137994 | R26: 0.01019158478 | S26: 0.01037503331 | T26: 0.01056178391 | U26: 0.01075189602 | V26: 0.01094543015 | W26: 0.01114244789 | X26: 0.01134301195 | Y26: 0.01154718617
B28: Hull insurance claims | C28: =C25*hull -> 339910.2 | D28: 339687.6 | E28: 321434.4 | F28: 310304.4 | G28: 325441.2 | H28: 178636.5 | I28: 185781.96 | J28: 189126.0353 | K28: 192530.3039 | L28: 195995.8494 | M28: 199523.7747 | N28: 203115.2026 | O28: 206771.2763 | P28: 210493.1592 | Q28: 214282.0361 | R28: 218139.1128 | S28: 222065.6168 | T28: 226062.7979 | U28: 230131.9282 | V28: 234274.303 | W28: 238491.2404 | X28: 242784.0827 | Y28: 247154.1962
B29: Liability insurance claims | C29: =C26*C23*liability -> 14163.95992 | D29: 15089.31539 | E29: 15323.82329 | F29: 15331.74585 | G29: 15422.06308 | H29: 8561.122658 | I29: 8903.567565 | J29: 9063.831781 | K29: 9226.980753 | L29: 9393.066407 | M29: 9562.141602 | N29: 9734.260151 | O29: 9909.476833 | P29: 10087.84742 | Q29: 10269.42867 | R29: 10454.27839 | S29: 10642.4554 | T29: 10834.01959 | U29: 11029.03195 | V29: 11227.55452 | W29: 11429.6505 | X29: 11635.38421 | Y29: 11844.82113
B31: Total insurance claims | C31: =SUM(C28:C29) -> 354074.1599 | D31: =SUM(D28:D29) -> 354776.9154 | E31: 336758.2233 | F31: 325636.1459 | G31: 340863.2631 | H31: 187197.6227 | I31: 194685.5276 | J31: 198189.8671 | K31: 201757.2847 | L31: 205388.9158 | M31: 209085.9163 | N31: 212849.4628 | O31: 216680.7531 | P31: 220581.0067 | Q31: 224551.4648 | R31: 228593.3911 | S31: 232708.0722 | T31: 236896.8175 | U31: 241160.9602 | V31: 245501.8575 | W31: 249920.8909 | X31: 254419.4669 | Y31: 258999.0174
B33: Reduced insurance claims due to fewer incidents | C33: =C17-C31 -> 0 | D33: 0 | E33: 0 | F33: 0 | G33: 0 | H33: 159801.1792 | I33: 158559.2527 | J33: 161413.3192 | K33: 164318.759 | L33: 167276.4966 | M33: 170287.4736 | N33: 173352.6481 | O33: 176472.9958 | P33: 179649.5097 | Q33: 182883.2009 | R33: 186175.0985 | S33: 189526.2503 | T33: 192937.7228 | U33: 196410.6018 | V33: 199945.9926 | W33: 203545.0205 | X33: 207208.8308 | Y33: 210938.5898 | AA33: Average Post-Project
B34: Insurance claim savings per inbound flight | C34: =C33/C20 -> 0 | D34: 0 | E34: 0 | F34: 0 | G34: 0 | H34: 99.56459761 | I34: 94.99116504 | J34: 94.99116504 | K34: 94.99116504 | L34: 94.99116504 | M34: 94.99116504 | N34: 94.99116504 | O34: 94.99116504 | P34: 94.99116504 | Q34: 94.99116504 | R34: 94.99116504 | S34: 94.99116504 | T34: 94.99116504 | U34: 94.99116504 | V34: 94.99116504 | W34: 94.99116504 | X34: 94.99116504 | Y34: 94.99116504 | AA34: =AVERAGE(H34:Y34) -> 95.24524463
B35: Insurance claim savings per passenger arrival | C35: =C33/C22 -> 0 | D35: 0 | E35: 0 | F35: 0 | G35: 0 | H35: 14.78818982 | I35: 14.1089043 | J35: 14.1089043 | K35: 14.1089043 | L35: 14.1089043 | M35: 14.1089043 | N35: 14.1089043 | O35: 14.1089043 | P35: 14.1089043 | Q35: 14.1089043 | R35: 14.1089043 | S35: 14.1089043 | T35: 14.1089043 | U35: 14.1089043 | V35: 14.1089043 | W35: 14.1089043 | X35: 14.1089043 | Y35: 14.1089043 | AA35: =AVERAGE(H35:Y35) -> 14.14664239
A38: Notes
A39: 1 | B39: A movement is a take-off or a landing for an airplane. There are 2 movements per flight.
A40: 2 | B40: Number of incidents estimated based on the incident rate per year for all of Tanzania. An incident is defined here as any type of event that affects the flight operations such as a blown tire, overrunning the runway, hitting a bird, or an accident. One movement is either a take-off or a landing, meaning there are two movements per flight.
A41: 3 | B41: Based on the fatal accident rate for Africa, 2002-2011 (CAA 2013).
A42: 4 | B42: For the purposes of this model, it is assumed that all incidents result in a hull insurance claim and replacement of the aircraft. This is an extremely generous assumption and should be treated as a maximum estimate for hull insurance claims.
A43: 5 | B43: For the purposes of this model, it is assumed that a fatal accident results in the death of all passengers on the aircraft. Liability insurance estimates are based on the minimum coverage allowed by ICAO under the Montreal Convention of 1999, which is equivalent to 100,000 Special Drawing Rights (SDR).
A44: 6 | B44: Reduction in incidents and accidents based on assumption set in sensitivity analysis.

Sheet Tourism
B1: Tanzania: Mafia Island Airport | K1: =IF('ERR & Sensitivity Analysis'!$I$10="N","Note: Current calculations are based on user input and are not the original MCC estimates.",IF('ERR & Sensitivity Analysis'!$I$11="N","Note: Current calculations are based on user input and are not the original MCC estimates.",0)) -> 0 | T1: Last updated: 8/27/2014
B2: Tourism Benefits | M2: <------------------------------- Compact Period --------------------------------->
B3: Project year | C3: -11 | D3: -10 | E3: -9 | F3: -8 | G3: -7 | H3: -6 | I3: -5 | J3: -4 | K3: -3 | L3: -2 | M3: -1 | N3: 0 | O3: 1 | P3: 2 | Q3: 3 | R3: 4 | S3: 5 | T3: 6 | U3: 7 | V3: 8 | W3: 9 | X3: 10 | Y3: 11 | Z3: 12 | AA3: 13 | AB3: 14 | AC3: 15 | AD3: 16 | AE3: 17 | AF3: 18 | AG3: 19 | AH3: 20
A4: Notes | B4: Year | C4: 1999 | D4: 2000 | E4: 2001 | F4: 2002 | G4: 2003 | H4: 2004 | I4: 2005 | J4: 2006 | K4: 2007 | L4: 2008 | M4: 2009 | N4: 2010 | O4: 2011 | P4: 2012 | Q4: 2013 | R4: 2014 | S4: 2015 | T4: 2016 | U4: 2017 | V4: 2018 | W4: 2019 | X4: 2020 | Y4: 2021 | Z4: 2022 | AA4: 2023 | AB4: 2024 | AC4: 2025 | AD4: 2026 | AE4: 2027 | AF4: 2028 | AG4: 2029 | AH4: 2030
A5: =A39 -> 1 | B5: Without project
A6: =A40 -> 2 | B6: Inbound flights | C6: 1290 | D6: 1504 | E6: 1614 | F6: 2130 | G6: 2133 | H6: 2413 | I6: 2448 | J6: 2131 | K6: 1373 | L6: 1527 | M6: 1526 | N6: 1444 | O6: 1394 | P6: 1462 | Q6: =P6*(1+growth) -> 1488.316 | R6: 1515.105688 | S6: 1542.37759 | T6: 1570.140387 | U6: 1598.402914 | V6: 1627.174166 | W6: 1656.463301 | X6: 1686.279641 | Y6: 1716.632674 | Z6: 1747.532063 | AA6: 1778.98764 | AB6: 1811.009417 | AC6: 1843.607587 | AD6: 1876.792523 | AE6: 1910.574789 | AF6: 1944.965135 | AG6: 1979.974507 | AH6: 2015.614048
B7: Passengers per flight | C7: =C10/C6 -> 5.123255814 | D7: 4.714095745 | E7: 5.256505576 | F7: 4.208920188 | G7: 4.676511955 | H7: 4.987981765 | I7: 4.537173203 | J7: 4.599718442 | K7: 4.627093955 | L7: =L10/L6 -> 5.853962017 | M7: =M10/M6 -> 6.240498034 | N7: =N10/N6 -> 6.697368421 | O7: 6.941176471 | P7: 6.657318741 | Q7: 6.657318741 | R7: 6.657318741 | S7: 6.657318741 | T7: 6.657318741 | U7: 6.657318741 | V7: 6.657318741 | W7: 6.657318741 | X7: 6.657318741 | Y7: 6.657318741 | Z7: 6.657318741 | AA7: 6.657318741 | AB7: 6.657318741 | AC7: 6.657318741 | AD7: 6.657318741 | AE7: 6.657318741 | AF7: 6.657318741 | AG7: 6.657318741 | AH7: 6.657318741
A8: =A41 -> 3 | B8: Passenger load factor (% of seats filled) | C8: =C7/10 -> 0.5123255814 | D8: 0.4714095745 | E8: 0.5256505576 | F8: 0.4208920188 | G8: 0.4676511955 | H8: 0.4987981765 | I8: 0.4537173203 | J8: 0.4599718442 | K8: 0.4627093955 | L8: =L7/10 -> 0.5853962017 | M8: =M7/12 -> 0.5200415028 | N8: =N7/12 -> 0.5581140351 | O8: 0.5784313725 | P8: 0.5547765618 | Q8: 0.5547765618 | R8: 0.5547765618 | S8: 0.5547765618 | T8: 0.5547765618 | U8: 0.5547765618 | V8: 0.5547765618 | W8: 0.5547765618 | X8: 0.5547765618 | Y8: 0.5547765618 | Z8: 0.5547765618 | AA8: 0.5547765618 | AB8: 0.5547765618 | AC8: 0.5547765618 | AD8: 0.5547765618 | AE8: 0.5547765618 | AF8: 0.5547765618 | AG8: 0.5547765618 | AH8: 0.5547765618
A10: =A40 -> 2 | B10: Passenger arrivals | C10: 6609 | D10: 7090 | E10: 8484 | F10: 8965 | G10: 9975 | H10: 12036 | I10: 11107 | J10: 9802 | K10: 6353 | L10: 8939 | M10: 9523 | N10: 9671 | O10: 9676 | P10: 9733 | Q10: =P10*(1+growth) -> 9908.194 | R10: 10086.54149 | S10: 10268.09924 | T10: 10452.92503 | U10: 10641.07768 | V10: 10832.61707 | W10: 11027.60418 | X10: 11226.10106 | Y10: 11428.17088 | Z10: 11633.87795 | AA10: 11843.28775 | AB10: 12056.46693 | AC10: 12273.48334 | AD10: 12494.40604 | AE10: 12719.30535 | AF10: 12948.25284 | AG10: 13181.32139 | AH10: 13418.58518
B11: Tourists | C11: =C10*tourist -> 2643.6 | D11: =D10*tourist -> 2836 | E11: =E10*tourist -> 3393.6 | F11: =F10*tourist -> 3586 | G11: =G10*tourist -> 3990 | H11: =H10*tourist -> 4814.4 | I11: =I10*tourist -> 4442.8 | J11: =J10*tourist -> 3920.8 | K11: =K10*tourist -> 2541.2 | L11: =L10*tourist -> 3575.6 | M11: 3809.2 | N11: 3868.4 | O11: 3870.4 | P11: 3893.2 | Q11: 3963.2776 | R11: 4034.616597 | S11: 4107.239696 | T11: 4181.17001 | U11: 4256.43107 | V11: 4333.04683 | W11: 4411.041672 | X11: 4490.440423 | Y11: 4571.26835 | Z11: 4653.55118 | AA11: 4737.315102 | AB11: 4822.586774 | AC11: 4909.393335 | AD11: 4997.762415 | AE11: 5087.722139 | AF11: 5179.301137 | AG11: 5272.528558 | AH11: 5367.434072
B12: Business travelers | C12: =C10*business -> 2379.24 | D12: 2552.4 | E12: 3054.24 | F12: 3227.4 | G12: 3591 | H12: 4332.96 | I12: 3998.52 | J12: 3528.72 | K12: 2287.08 | L12: =L10*business -> 3218.04 | M12: 3428.28 | N12: 3481.56 | O12: 3483.36 | P12: 3503.88 | Q12: 3566.94984 | R12: 3631.154937 | S12: 3696.515726 | T12: 3763.053009 | U12: 3830.787963 | V12: 3899.742147 | W12: 3969.937505 | X12: 4041.39638 | Y12: 4114.141515 | Z12: 4188.196062 | AA12: 4263.583592 | AB12: 4340.328096 | AC12: 4418.454002 | AD12: 4497.986174 | AE12: 4578.949925 | AF12: 4661.371024 | AG12: 4745.275702 | AH12: 4830.690665
B13: Other visitors | C13: =C10-SUM(C11:C12) -> 1586.16 | D13: 1701.6 | E13: 2036.16 | F13: 2151.6 | G13: 2394 | H13: 2888.64 | I13: 2665.68 | J13: 2352.48 | K13: 1524.72 | L13: =L10-SUM(L11:L12) -> 2145.36 | M13: =M10-SUM(M11:M12) -> 2285.52 | N13: 2321.04 | O13: 2322.24 | P13: 2335.92 | Q13: 2377.96656 | R13: 2420.769958 | S13: 2464.343817 | T13: 2508.702006 | U13: 2553.858642 | V13: 2599.828098 | W13: 2646.625003 | X13: 2694.264254 | Y13: 2742.76101 | Z13: 2792.130708 | AA13: =AA10-SUM(AA11:AA12) -> 2842.389061 | AB13: =AB10-SUM(AB11:AB12) -> 2893.552064 | AC13: =AC10-SUM(AC11:AC12) -> 2945.636001 | AD13: =AD10-SUM(AD11:AD12) -> 2998.657449 | AE13: =AE10-SUM(AE11:AE12) -> 3052.633283 | AF13: =AF10-SUM(AF11:AF12) -> 3107.580682 | AG13: =AG10-SUM(AG11:AG12) -> 3163.517135 | AH13: =AH10-SUM(AH11:AH12) -> 3220.460443
A15: =A42 -> 4 | B15: Bed-nights consumed | C15: =C10*stay -> 41901.06 | D15: 44950.6 | E15: 53788.56 | F15: 56838.1 | G15: 63241.5 | H15: 76308.24 | I15: 70418.38 | J15: 62144.68 | K15: 40278.02 | L15: =L10*stay -> 56673.26 | M15: 60375.82 | N15: 61314.14 | O15: 61345.84 | P15: 61707.22 | Q15: 62817.94996 | R15: 63948.67306 | S15: 65099.74917 | T15: 66271.54466 | U15: 67464.43246 | V15: 68678.79225 | W15: 69915.01051 | X15: 71173.4807 | Y15: 72454.60335 | Z15: 73758.78621 | AA15: 75086.44436 | AB15: 76438.00036 | AC15: 77813.88437 | AD15: 79214.53429 | AE15: 80640.3959 | AF15: 82091.92303 | AG15: 83569.57764 | AH15: 85073.83004
B16: Hotel occupancy rate | C16: =C15/bed_max -> 0.4013895967 | D16: =D15/bed_max -> 0.4306025481 | E16: =E15/bed_max -> 0.5152654469 | F16: =F15/bed_max -> 0.5444783983 | G16: =G15/bed_max -> 0.6058195229 | H16: =H15/bed_max -> 0.7309918575 | I16: =I15/bed_max -> 0.6745701696 | J16: =J15/bed_max -> 0.5953125778 | K16: =K15/bed_max -> 0.3858417473 | L16: =L15/bed_max -> 0.5428993199 | M16: 0.5783678513 | N16: 0.5873564518 | O16: 0.5876601207 | P16: 0.5911219465 | Q16: 0.6017621416 | R16: 0.6125938601 | S16: 0.6236205496 | T16: 0.6348457195 | U16: 0.6462729425 | V16: 0.6579058554 | W16: 0.6697481608 | X16: 0.6818036277 | Y16: 0.694076093 | Z16: 0.7065694627 | AA16: 0.719287713 | AB16: 0.7322348919 | AC16: 0.7454151199 | AD16: 0.7588325921 | AE16: 0.7724915787 | AF16: 0.7863964271 | AG16: 0.8005515628 | AH16: 0.814961491
B18: Tourism spending | C18: =C10*stay*spend -> 3991836 | D18: 4282360 | E18: 5124336 | F18: 5414860 | G18: 6024900 | H18: 7269744 | I18: 6708628 | J18: 5920408 | K18: 3837212 | L18: 5399156 | M18: 5751892 | N18: 5841284 | O18: 5844304 | P18: 5878732 | Q18: 5984549.176 | R18: 6092271.061 | S18: 6201931.94 | T18: 6313566.715 | U18: 6427210.916 | V18: 6542900.713 | W18: 6660672.925 | X18: 6780565.038 | Y18: 6902615.209 | Z18: 7026862.282 | AA18: 7153345.804 | AB18: 7282106.028 | AC18: 7413183.937 | AD18: 7546621.247 | AE18: 7682460.43 | AF18: 7820744.718 | AG18: 7961518.122 | AH18: 8104825.449
B21: With project
B22: Inbound flights | C22: =C6 -> 1290 | D22: 1504 | E22: 1614 | F22: 2130 | G22: 2133 | H22: 2413 | I22: 2448 | J22: 2131 | K22: 1373 | L22: =L6 -> 1527 | M22: =M6 -> 1526 | N22: =N6 -> 1444 | O22: =O6 -> 1394 | P22: =P6 -> 1462 | Q22: 1605 | R22: =Q22*(1+growth_jump) -> 1669.2 | S22: =R22*(1+growth) -> 1699.2456 | T22: 1729.832021 | U22: 1760.968997 | V22: 1792.666439 | W22: 1824.934435 | X22: 1857.783255 | Y22: 1891.223353 | Z22: 1925.265374 | AA22: 1959.920151 | AB22: 1995.198713 | AC22: 2031.11229 | AD22: 2067.672311 | AE22: 2104.890413 | AF22: 2142.77844 | AG22: 2181.348452 | AH22: 2220.612724
B23: Passengers per flight | C23: =C26/C22 -> 5.123255814 | D23: 4.714095745 | E23: 5.256505576 | F23: 4.208920188 | G23: 4.676511955 | H23: 4.987981765 | I23: 4.537173203 | J23: 4.599718442 | K23: 4.627093955 | L23: =L26/L22 -> 5.853962017 | M23: =M26/M22 -> 6.240498034 | N23: 6.697368421 | O23: 6.941176471 | P23: 6.657318741 | Q23: 6.73271028 | R23: 6.73271028 | S23: 6.73271028 | T23: 6.73271028 | U23: 6.73271028 | V23: 6.73271028 | W23: 6.73271028 | X23: 6.73271028 | Y23: 6.73271028 | Z23: 6.73271028 | AA23: 6.73271028 | AB23: 6.73271028 | AC23: 6.73271028 | AD23: 6.73271028 | AE23: 6.73271028 | AF23: 6.73271028 | AG23: 6.73271028 | AH23: 6.73271028
B24: Passenger load factor (% of seats filled) | C24: =C23/12 -> 0.4269379845 | D24: 0.3928413121 | E24: 0.4380421314 | F24: 0.350743349 | G24: 0.3897093296 | H24: 0.4156651471 | I24: 0.3780977669 | J24: 0.3833098702 | K24: 0.3855911629 | L24: =L23/12 -> 0.4878301681 | M24: =M23/12 -> 0.5200415028 | N24: 0.5581140351 | O24: 0.5784313725 | P24: 0.5547765618 | Q24: 0.56105919 | R24: 0.56105919 | S24: 0.56105919 | T24: 0.56105919 | U24: 0.56105919 | V24: 0.56105919 | W24: 0.56105919 | X24: 0.56105919 | Y24: 0.56105919 | Z24: 0.56105919 | AA24: 0.56105919 | AB24: 0.56105919 | AC24: 0.56105919 | AD24: 0.56105919 | AE24: 0.56105919 | AF24: 0.56105919 | AG24: 0.56105919 | AH24: 0.56105919
A26: 1 | B26: Passenger arrivals | C26: =C10 -> 6609 | D26: 7090 | E26: 8484 | F26: 8965 | G26: 9975 | H26: 12036 | I26: 11107 | J26: 9802 | K26: 6353 | L26: =L10 -> 8939 | M26: =M10 -> 9523 | N26: =N10 -> 9671 | O26: =O10 -> 9676 | P26: =P10 -> 9733 | Q26: 10806 | R26: =Q26*(1+growth_jump) -> 11238.24 | S26: =R26*(1+growth) -> 11440.52832 | T26: 11646.45783 | U26: 11856.09407 | V26: 12069.50376 | W26: 12286.75483 | X26: 12507.91642 | Y26: 12733.05891 | Z26: 12962.25397 | AA26: 13195.57455 | AB26: 13433.09489 | AC26: 13674.8906 | AD26: 13921.03863 | AE26: 14171.61732 | AF26: 14426.70643 | AG26: 14686.38715 | AH26: 14950.74212
B27: Tourists | C27: =C26*tourist -> 2643.6 | D27: =D26*tourist -> 2836 | E27: =E26*tourist -> 3393.6 | F27: =F26*tourist -> 3586 | G27: =G26*tourist -> 3990 | H27: =H26*tourist -> 4814.4 | I27: =I26*tourist -> 4442.8 | J27: =J26*tourist -> 3920.8 | K27: =K26*tourist -> 2541.2 | L27: =L26*tourist -> 3575.6 | M27: 3809.2 | N27: 3868.4 | O27: 3870.4 | P27: 3893.2 | Q27: 4322.4 | R27: 4495.296 | S27: 4576.211328 | T27: 4658.583132 | U27: 4742.437628 | V27: 4827.801506 | W27: 4914.701933 | X27: 5003.166567 | Y27: 5093.223566 | Z27: 5184.90159 | AA27: 5278.229818 | AB27: 5373.237955 | AC27: 5469.956238 | AD27: 5568.415451 | AE27: 5668.646929 | AF27: 5770.682574 | AG27: 5874.55486 | AH27: 5980.296847
B28: Business travelers | C28: =C26*business -> 2379.24 | D28: 2552.4 | E28: 3054.24 | F28: 3227.4 | G28: 3591 | H28: 4332.96 | I28: 3998.52 | J28: 3528.72 | K28: 2287.08 | L28: =L26*business -> 3218.04 | M28: 3428.28 | N28: 3481.56 | O28: 3483.36 | P28: 3503.88 | Q28: 3890.16 | R28: 4045.7664 | S28: 4118.590195 | T28: 4192.724819 | U28: 4268.193865 | V28: 4345.021355 | W28: 4423.231739 | X28: 4502.849911 | Y28: 4583.901209 | Z28: 4666.411431 | AA28: 4750.406837 | AB28: 4835.91416 | AC28: 4922.960615 | AD28: 5011.573906 | AE28: 5101.782236 | AF28: 5193.614316 | AG28: 5287.099374 | AH28: 5382.267163
B29: Other visitors | C29: =C26-SUM(C27:C28) -> 1586.16 | D29: 1701.6 | E29: 2036.16 | F29: 2151.6 | G29: 2394 | H29: 2888.64 | I29: 2665.68 | J29: 2352.48 | K29: 1524.72 | L29: =L26-SUM(L27:L28) -> 2145.36 | M29: =M26-SUM(M27:M28) -> 2285.52 | N29: 2321.04 | O29: 2322.24 | P29: 2335.92 | Q29: 2593.44 | R29: 2697.1776 | S29: 2745.726797 | T29: 2795.149879 | U29: 2845.462577 | V29: 2896.680903 | W29: 2948.82116 | X29: 3001.89994 | Y29: 3055.934139 | Z29: 3110.940954 | AA29: 3166.937891 | AB29: 3223.942773 | AC29: 3281.973743 | AD29: 3341.04927 | AE29: 3401.188157 | AF29: 3462.409544 | AG29: 3524.732916 | AH29: 3588.178108
B31: Bed-nights | C31: =C26*stay -> 41901.06 | D31: 44950.6 | E31: 53788.56 | F31: 56838.1 | G31: 63241.5 | H31: 76308.24 | I31: 70418.38 | J31: 62144.68 | K31: 40278.02 | L31: =L26*stay -> 56673.26 | M31: 60375.82 | N31: 61314.14 | O31: 61345.84 | P31: 61707.22 | Q31: 68510.04 | R31: 71250.4416 | S31: 72532.94955 | T31: 73838.54264 | U31: 75167.63641 | V31: 76520.65386 | W31: 77898.02563 | X31: 79300.19009 | Y31: 80727.59352 | Z31: 82180.6902 | AA31: 83659.94262 | AB31: 85165.82159 | AC31: 86698.80638 | AD31: 88259.38489 | AE31: 89848.05382 | AF31: 91465.31879 | AG31: 93111.69453 | AH31: 94787.70503
B32: Hotel occupancy rate | C32: =C31/bed_max -> 0.4013895967 | D32: =D31/bed_max -> 0.4306025481 | E32: =E31/bed_max -> 0.5152654469 | F32: =F31/bed_max -> 0.5444783983 | G32: =G31/bed_max -> 0.6058195229 | H32: =H31/bed_max -> 0.7309918575 | I32: =I31/bed_max -> 0.6745701696 | J32: =J31/bed_max -> 0.5953125778 | K32: =K31/bed_max -> 0.3858417473 | L32: =L31/bed_max -> 0.5428993199 | M32: 0.5783678513 | N32: 0.5873564518 | O32: 0.5876601207 | P32: 0.5911219465 | Q32: 0.6562892997 | R32: 0.6825408717 | S32: 0.6948266074 | T32: 0.7073334864 | U32: 0.7200654891 | V32: 0.7330266679 | W32: 0.7462211479 | X32: 0.7596531286 | Y32: 0.7733268849 | Z32: 0.7872467688 | AA32: 0.8014172107 | AB32: 0.8158427205 | AC32: 0.8305278894 | AD32: 0.8454773915 | AE32: 0.8606959845 | AF32: 0.8761885122 | AG32: 0.8919599054 | AH32: 0.9080151837
B34: Visitor spending | C34: =C26*stay*spend -> 3991836 | D34: 4282360 | E34: 5124336 | F34: 5414860 | G34: 6024900 | H34: 7269744 | I34: 6708628 | J34: 5920408 | K34: 3837212 | L34: =L26*stay*spend -> 5399156 | M34: 5751892 | N34: 5841284 | O34: 5844304 | P34: 5878732 | Q34: 6526824 | R34: 6787896.96 | S34: 6910079.105 | T34: 7034460.529 | U34: 7161080.819 | V34: 7289980.273 | W34: 7421199.918 | X34: 7554781.517 | Y34: 7690767.584 | Z34: 7829201.401 | AA34: 7970127.026 | AB34: 8113589.312 | AC34: 8259633.92 | AD34: 8408307.331 | AE34: 8559656.863 | AF34: 8713730.686 | AG34: 8870577.838 | AH34: 9030248.239
B36: Change in visitor spending | C36: =C34-C18 -> 0 | D36: 0 | E36: 0 | F36: 0 | G36: 0 | H36: 0 | I36: 0 | J36: 0 | K36: 0 | L36: =L34-L18 -> 0 | M36: 0 | N36: 0 | O36: 0 | P36: 0 | Q36: 542274.824 | R36: 695625.8988 | S36: 708147.165 | T36: 720893.814 | U36: 733869.9026 | V36: 747079.5609 | W36: 760526.993 | X36: 774216.4788 | Y36: 788152.3755 | Z36: 802339.1182 | AA36: 816781.2224 | AB36: 831483.2844 | AC36: 846449.9835 | AD36: 861686.0832 | AE36: 877196.4327 | AF36: 892985.9685 | AG36: 909059.7159 | AH36: 925422.7908
B38: Notes
A39: 1 | B39: Actual statistics for 1999-2010 shown to illustrate the long-term trend of inbound flights and passenger arrivals at Mafia Airport. Flight and arrival projections begin in 2014.
A40: 2 | B40: Statistics from 1999-2006 from Tanzania Airports Authority; statistics from 2007-2012 from Busalama Baseline Evaluation Report; and statistics for 2013 from
A41: 3 | B41: Predicted by dividing the number of projected passengers by 90% of a Cessna 208's full-capacity which is 12. | S41: 2. Bed-night capacity is 104,390 (assuming double-occupancy).
A42: 4 | B42: 3.5 avg. nights/ person. A bed-night is the amount of available beds per night in a hotel.

Sheet Demand
B1: Tanzania: Mafia Island Airport | N1: Last updated: 8/27/2014
B2: Demand for Flights to Mafia Island
I3: =IF('ERR & Sensitivity Analysis'!$I$10="N","Note: Current calculations are based on user input and are not the original MCC estimates.",IF('ERR & Sensitivity Analysis'!$I$14="N","Note: Current calculations are based on user input and are not the original MCC estimates.",0)) -> 0
A4: =A42 -> 1 | B4: =120*2 -> 240 | C4: Round-trip (DAR-MFA), 2013
A5: =A43 -> 2 | B5: 10806 | C5: Passenger arrivals, 2013
A6: 3 | B6: 8.549143775 | C6: Average aircraft operating cost savings per passenger arrival
B8: Estimating the demand equation based on 2013 prices and arrivals
B10: P | C10: = | D10: price of roundtrip ticket Dar es Salaam-Mafia, 2013
B11: Q | C11: = | D11: total passenger arrivals at Mafia Airport, 2013
B12: m | C12: = | D12: elasticity of demand for air travel
B14: ln (P) | C14: = | D14: m * | E14: ln (Q) | F14: + | G14: b
B15: ln ($240) | C15: = | D15: m * | E15: ln (10,806) | F15: + | G15: b
A16: =A45 -> 4 | B16: =LN(240) -> 5.480638923 | C16: = | D16: =-1.4*0.6*1.1 -> -0.924 | E16: =LN(B5) -> 9.287856814 | F16: + | G16: b
B17: =B16 -> 5.480638923 | C17: = | D17: =D16*E16 -> -8.581979697 | F17: + | G17: b
B18: =B17-D17 -> 14.06261862 | C18: = | G18: b
B20: ln (P) | C20: = | D20: =D16 -> -0.924 | E20: ln(Q) | F20: + | G20: =B18 -> 14.06261862
N26: Without Project | R26: With Project
J27: P | K27: 928.1562633 | L27: 489.1807783 | M27: 257.8206314 | N27: 240 | O27: 209.7842192 | P27: 177.2594283 | Q27: 153.727127 | R27: =airfare-B6 -> 231.4508562
J28: Q | K28: 2500 | L28: 5000 | M28: 10000 | N28: 10806 | O28: 12500 | P28: 15000 | Q28: 17500 | R28: =D37 -> 11238.62213
A30: =A46 -> 5 | B30: Estimating the increase in demand with project, based on airline cost savings per passenger
B31: ln (P) | C31: = | D31: =D20 -> -0.924 | E31: ln(Q) | F31: + | G31: =G20 -> 14.06261862
B32: ln($240-cost savings) | C32: = | D32: =D31 -> -0.924 | E32: ln(Q) | F32: + | G32: =G31 -> 14.06261862
B33: ln($240-8.55) | C33: = | D33: =D32 -> -0.924 | E33: ln(Q) | F33: + | G33: =G32 -> 14.06261862
B34: =LN(airfare-B6) -> 5.444367567 | C34: = | D34: =D33 -> -0.924 | E34: ln(Q) | F34: + | G34: =G32 -> 14.06261862
B35: =B34-G34 -> -8.618251053 | C35: = | D35: -0.924 | E35: ln(Q)
B36: =B35/D35 -> 9.327111529 | C36: = | E36: ln (Q)
B37: Q | C37: = | D37: =EXP(B36) -> 11238.62213
B39: =(D37-B5)/B5 -> 0.04003536231 | D39: percent increase in equilibrium arrivals due to lower airfares
B41: Notes
A42: 1 | B42: Coastal Aviation website. http://www.coastal.co.tz/flights/scheduled-flights/
A43: 2 | B43: Tanzania Airports Authority data.
A44: 3 | B44: Calculated from the 'Aircraft' worksheet by calculating the average savings per passenger, assuming the "with project" scenario had the same number of flights per year as the "without project" scenario (to eliminate bias from more flights in the "with project" scenario).
A45: 4 | B45: InterVISTAS (2007), p. 34-36. The elasticity is calculated by multiplying three factors cited in the InterVISTAS report: the -1.4 route/market level base elasticity, a 0.60 elasticity multiplier for intra-Sub-Saharan Africa fligths, and the 1.1 short-haul adjustor.
A46: 5 | B46: This formula attempts to calculate the one-time change in demand for air travel to Mafia as a result of the upgraded airport facilities. It assumes that airlines pass on all aircraft operating cost savings to consumers in the form of reduced ticket prices, or that the lower operating costs induce new air carriers to enter the market, increasing competition and driving down prices. This is a strong assumption, as it could just as easily match the status quo if no new carriers enter the market and existing carriers bank the savings rather than passing them to consumers.

Sheet Sensitivity
C1: Tanzania: Mafia Island Airport | K1: Last updated: 8/27/2014
C2: Sensitivity Analysis
G4: Crystal Ball Report - Full
G5: Simulation started on 8/27/2014 at 5:23 PM
G6: Simulation stopped on 8/27/2014 at 5:43 PM
C8: Run preferences: | M8: Crystal Ball data:
D9: Number of trials run | F9: 10000 | N9: Assumptions | P9: 5
D10: Monte Carlo | N10: Correlations | P10: 2
D11: Random seed | N11: Correlated groups | P11: 1
D12: Precision control on | N12: Decision variables | P12: 0
D13: Confidence level | F13: 0.95 | N13: Forecasts | P13: 3
C15: Run statistics: | M15: User macros executed:
D16: Total running time (sec) | F16: 1225.686965 | N16: TZAMafiaERR 082714.xlsm'!ThisWorkbook.CBAfterSimulation
D17: Trials/second (average) | F17: 8.15869001
D18: Random numbers per sec | F18: 40.79345005
G21: Forecasts | S21: Assumptions
B24: Worksheet: [TZAMafiaERR 082714.xlsm]ERR & Sensitivity Analysis | N24: Worksheet: [TZAMafiaERR 082714.xlsm]ERR & Sensitivity Analysis
B26: Forecast: Economic rate of return (ERR) | K26: Cell: D21 | N26: Assumption: Estimated % reduction in foreign object damage with project | W26: Cell: D14
C28: Summary: | O28: Normal distribution with parameters:
D29: Entire range is from -6.7% to 11.6% | P29: Mean | R29: 0.5
D30: Base case is 2.3% | P30: Std. Dev. | R30: 0.15
D31: After 10,000 trials, the std. error of the mean is 0.0%
P32: Selected range is from 0% to 100%
O36: Correlated with: | U36: Coefficient
P37: Estimated % reduction in maintenance time, with project (D15) | U37: 0.5
N39: Assumption: Estimated % reduction in incidents with project | W39: Cell: D16
O41: Normal distribution with parameters:
P42: Mean | R42: 0.5
P43: Std. Dev. | R43: 0.15
P45: Selected range is from 0% to 100%
O49: Correlated with: | U49: Coefficient
P50: Estimated % reduction in maintenance time, with project (D15) | U50: 0.05
C51: Statistics: | F51: Forecast values
D52: Trials | F52: 10000 | N52: Assumption: Estimated % reduction in maintenance time, with project | W52: Cell: D15
D53: Base Case | F53: 0.02295461726
D54: Mean | F54: 0.01212971847 | O54: Normal distribution with parameters:
D55: Median | F55: 0.01189385658 | P55: Mean | R55: 0.5
D56: Mode | F56: --- | P56: Std. Dev. | R56: 0.15
D57: Standard Deviation | F57: 0.02043613512
D58: Variance | F58: 0.0004176356187 | P58: Selected range is from 0% to 100%
D59: Skewness | F59: 0.1758656322
D60: Kurtosis | F60: 3.652144399
D61: Coeff. of Variability | F61: 1.684798799
D62: Minimum | F62: -0.0665578716 | O62: Correlated with: | U62: Coefficient
D63: Maximum | F63: 0.1158744149 | P63: Estimated % reduction in foreign object damage with project (D14) | U63: 0.5
D64: Range Width | F64: 0.1824322865 | P64: Estimated % reduction in incidents with project (D16) | U64: 0.05
D65: Mean Std. Error | F65: 0.0002043613512
N66: Assumption: Increased annual airport O&M costs as a percentage of investment costs | W66: Cell: D17
B67: Forecast: Economic rate of return (ERR) (cont'd) | K67: Cell: D21
O68: Triangular distribution with parameters:
C69: Percentiles: | F69: Forecast values | P69: Minimum | R69: 0
D70: 0% | F70: -0.0665578716 | P70: Likeliest | R70: 0.005
D71: 10% | F71: -0.01302281357 | P71: Maximum | R71: 0.03
D72: 20% | F72: -0.004311542305
D73: 30% | F73: 0.001771727023 | P73: Selected range is from -13.5% to 76.5%
D74: 40% | F74: 0.007070769036
D75: 50% | F75: 0.01189369918
D76: 60% | F76: 0.0166842438 | N76: Assumption: One-time increase in arrivals, with project | W76: Cell: D13
D77: 70% | F77: 0.02171751436
D78: 80% | F78: 0.02815569958 | O78: Lognormal distribution with parameters:
D79: 90% | F79: 0.03738561801 | P79: Location | R79: 0
D80: 100% | F80: 0.1158744149 | P80: Mean | R80: 0.04
P81: Std. Dev. | R81: 0.0184
B82: Worksheet: [TZAMafiaERR 082714.xlsm]ERR
P83: Selected range is from 0.0% to 30.0%
B84: Forecast: Net present value (NPV) | K84: Cell: C54
C86: Summary: | N86: End of Assumptions
D87: Entire range is from (8,696,746) to 1,226,217
D88: Base case is (4,992,730)
D89: After 10,000 trials, the std. error of the mean is 10,494
C109: Statistics: | F109: Forecast values
D110: Trials | F110: 10000
D111: Base Case | F111: -4992730.469
D112: Mean | F112: -5484662.742
D113: Median | F113: -5559391.788
D114: Mode | F114: ---
D115: Standard Deviation | F115: 1049357.129
D116: Variance | F116: 1.101150385e+12
D117: Skewness | F117: 0.6366009615
D118: Kurtosis | F118: 4.414430024
D119: Coeff. of Variability | F119: -0.1913257348
D120: Minimum | F120: -8696745.672
D121: Maximum | F121: 1226216.772
D122: Range Width | F122: 9922962.443
D123: Mean Std. Error | F123: 10493.57129
B125: Forecast: Net present value (NPV) (cont'd) | K125: Cell: C54
C127: Percentiles: | F127: Forecast values
D128: 0% | F128: -8696745.672
D129: 10% | F129: -6722703.271
D130: 20% | F130: -6341842.067
D131: 30% | F131: -6058045.774
D132: 40% | F132: -5797359.013
D133: 50% | F133: -5559641.405
D134: 60% | F134: -5309095.802
D135: 70% | F135: -5044833.853
D136: 80% | F136: -4696800.73
D137: 90% | F137: -4170425.516
D138: 100% | F138: 1226216.772
B140: Forecast: Present value (PV) of local benefits | K140: Cell: C56
C142: Summary:
D143: Entire range is from $2,795,587 to $12,718,550
D144: Base case is $6,499,602
D145: After 10,000 trials, the std. error of the mean is $10,494
C165: Statistics: | F165: Forecast values
D166: Trials | F166: 10000
D167: Base Case | F167: 6499602.386
D168: Mean | F168: 6007670.112
D169: Median | F169: 5932941.066
D170: Mode | F170: ---
D171: Standard Deviation | F171: 1049357.129
D172: Variance | F172: 1.101150385e+12
D173: Skewness | F173: 0.6366009615
D174: Kurtosis | F174: 4.414430024
D175: Coeff. of Variability | F175: 0.1746695657
D176: Minimum | F176: 2795587.182
D177: Maximum | F177: 12718549.63
D178: Range Width | F178: 9922962.443
D179: Mean Std. Error | F179: 10493.57129
A181: Forecast: Present value (PV) of local benefits (cont'd) | K181: Cell: C56
C183: Percentiles: | F183: Forecast values
D184: 0% | F184: 2795587.182
D185: 10% | F185: 4769629.583
D186: 20% | F186: 5150490.787
D187: 30% | F187: 5434287.08
D188: 40% | F188: 5694973.841
D189: 50% | F189: 5932691.449
D190: 60% | F190: 6183237.052
D191: 70% | F191: 6447499.001
D192: 80% | F192: 6795532.124
D193: 90% | F193: 7321907.338
D194: 100% | F194: 12718549.63
D196: End of Forecasts

Sheet Beneficiaries
B1: Tanzania: Mafia Island Airport Activity | Q1: Last updated: 8/27/2014
B2: Beneficiary Estimates
M3: =IF('ERR & Sensitivity Analysis'!$I$10="N","Note: Current calculations are based on user input and are not the original MCC estimates.",IF('ERR & Sensitivity Analysis'!$I$14="N","Note: Current calculations are based on user input and are not the original MCC estimates.","")) -> 
B4: Tanzania Population | M4: Y0 | N4: Y1 | O4: Y2 | P4: Y3 | Q4: Y4 | R4: Y5 | S4: Y6 | T4: Y7 | U4: Y8 | V4: Y9 | W4: Y10 | X4: Y11 | Y4: Y12 | Z4: Y13 | AA4: Y14 | AB4: Y15 | AC4: Y16 | AD4: Y17 | AE4: Y18 | AF4: Y19 | AG4: Y20
B5: Region | D5: Growth rate | E5: 2002 Census | F5: 2003 | G5: 2004 | H5: 2005 | I5: 2006 | J5: 2007 | K5: 2008 | L5: 2009 | M5: 2010 | N5: 2011 | O5: 2012 Census | P5: 2013 | Q5: 2014 | R5: 2015 | S5: 2016 | T5: 2017 | U5: 2018 | V5: 2019 | W5: 2020 | X5: 2021 | Y5: 2022 | Z5: 2023 | AA5: 2024 | AB5: 2025 | AC5: 2026 | AD5: 2027 | AE5: 2028 | AF5: 2029 | AG5: 2030
A6: =A23 -> 1 | B6: Tanzania Total | D6: 0.027 | E6: 34443603 | F6: =E6*(1+$D6) -> 35373580.28 | G6: 36328666.95 | H6: 37309540.96 | I6: 38316898.56 | J6: =I6*(1+$D6) -> 39351454.82 | K6: 40413944.1 | L6: 41505120.59 | M6: 42625758.85 | N6: 43776654.34 | O6: 44928923 | P6: =O6*(1+$D6) -> 46142003.92 | Q6: 47387838.03 | R6: 48667309.65 | S6: 49981327.01 | T6: 51330822.84 | U6: 52716755.06 | V6: 54140107.45 | W6: 55601890.35 | X6: 57103141.39 | Y6: 58644926.2 | Z6: 60228339.21 | AA6: 61854504.37 | AB6: 63524575.99 | AC6: 65239739.54 | AD6: 67001212.51 | AE6: 68810245.25 | AF6: =AE6*(1+$D6) -> 70668121.87 | AG6: 72576161.16
A7: =A24 -> 2 | B7: Pwani Region | D7: 0.022 | E7: 885017 | F7: 904487.374 | G7: 924386.0962 | H7: 944722.5903 | I7: 965506.4873 | J7: 986747.6301 | K7: 1008456.078 | L7: 1030642.112 | M7: 1053316.238 | N7: 1076489.195 | O7: 1098668 | P7: 1122838.696 | Q7: 1147541.147 | R7: 1172787.053 | S7: 1198588.368 | T7: 1224957.312 | U7: 1251906.373 | V7: 1279448.313 | W7: 1307596.176 | X7: 1336363.292 | Y7: 1365763.284 | Z7: 1395810.076 | AA7: 1426517.898 | AB7: 1457901.292 | AC7: 1489975.12 | AD7: 1522754.573 | AE7: 1556255.173 | AF7: 1590492.787 | AG7: 1625483.628
A8: =A25 -> 3 | C8: Mafia Island | D8: =((O8/E8)^0.1)-1 -> 0.0136330639 | E8: 40557 | F8: =E8*(1+$D8) -> 41109.91617 | G8: 41670.37029 | H8: 42238.46511 | I8: 42814.3048 | J8: 43397.99495 | K8: 43989.64259 | L8: 44589.3562 | M8: 45197.24574 | N8: 45813.42268 | O8: 46438 | P8: 47071.09222 | Q8: 47712.81543 | R8: 48363.28729 | S8: 49022.62708 | T8: 49690.95568 | U8: 50368.39566 | V8: 51055.07121 | W8: 51751.10826 | X8: 52456.63443 | Y8: 53171.77908 | Z8: 53896.67334 | AA8: 54631.45013 | AB8: 55376.24418 | AC8: 56131.19205 | AD8: 56896.43218 | AE8: 57672.10488 | AF8: 58458.35237 | AG8: 59255.31882
A9: =A23 -> 1 | B9: Mainland | D9: 0.027 | E9: 33461849 | F9: 34365318.92 | G9: 35293182.53 | H9: 36246098.46 | I9: 37224743.12 | J9: 38229811.19 | K9: 39262016.09 | L9: 40322090.52 | M9: 41410786.97 | N9: 42528878.21 | O9: 43625354 | P9: =O9*(1+$D9) -> 44803238.56 | Q9: 46012926 | R9: 47255275 | S9: 48531167.43 | T9: 49841508.95 | U9: 51187229.69 | V9: 52569284.89 | W9: 53988655.58 | X9: 55446349.28 | Y9: 56943400.71 | Z9: 58480872.53 | AA9: 60059856.09 | AB9: 61681472.21 | AC9: 63346871.95 | AD9: 65057237.5 | AE9: 66813782.91 | AF9: 68617755.05 | AG9: 70470434.43
B12: Households | D12: Avg. HH Size
A13: =A24 -> 2 | C13: Mafia Island | D13: 3.9 | E13: =E8/$D$13 -> 10399.23077 | F13: =F8/$D$13 -> 10541.00415 | G13: 10684.71033 | H13: 10830.37567 | I13: 10978.02687 | J13: 11127.69101 | K13: 11279.39554 | L13: 11433.16826 | M13: 11589.03737 | N13: 11747.03146 | O13: 11907.17949 | P13: 12069.51083 | Q13: 12234.05524 | R13: 12400.84289 | S13: 12569.90438 | T13: 12741.27069 | U13: 12914.97325 | V13: 13091.0439 | W13: 13269.51494 | X13: 13450.41908 | Y13: 13633.78951 | Z13: 13819.65983 | AA13: 14008.06414 | AB13: 14199.03697 | AC13: 14392.61335 | AD13: 14588.82876 | AE13: 14787.7192 | AF13: 14989.32112 | AG13: 15193.67149
A16: =A24 -> 2 | B16: Sex Disaggregation | D16: 2012 Census | E16: %
B17: Mafia Island | D17: =O8 -> 46438 | E17: =D17/$D$17 -> 1
C18: Male | D18: 22954 | E18: =D18/$D$17 -> 0.4942934666
C19: Female | D19: 23484 | E19: 0.5057065334
B22: Notes
A23: 1 | B23: Tanzania National Bureau of Statistics (2013), Table 2.
A24: 2 | B24: Tanzania National Bureau of Statistics (2013), Table 6.0.
A25: 3 | B25: Intercensal growth rate for Mafia Island calculated using 2002 and 2012 Tanzania Census data.

Sheet Poverty Scorecard
B1: 0 | K1: Last updated: 8/27/2014
B4: Poverty Scorecard
C5: =IF('ERR & Sensitivity Analysis'!$I$10="N","Note: Current calculations are based on user input and are not the original MCC estimates.",IF('ERR & Sensitivity Analysis'!$I$14="N","Note: Current calculations are based on user input and are not the original MCC estimates.","")) -> 
B7: Tanzania: Mafia Island Airport Activity
K8: Bar Chart Data
C9: 2013 US$ | E9: 2005 PPP $ | K9: Activity/Sub-activity | L9: Mafia Island Airport Activity | M9: National Income Distribution
B10: MCC Cost (Millions USD) | C10: =Costs!N17/10^6 -> 14.72725664 | E10: =C10*(99.991/106.442) -> 13.83469982 | K10: Consump. <$1.25/day | L10: =E33 -> 0.01916508221 | M10: =R18 -> 0.1298612704
B11: 20-Year ERR | C11: =ERR -> 0.02295461726 | K11: Consump. >=$1.25/day and <$2/day | L11: =F33-E33 -> 0.07075362445 | M11: =R19 -> 0.2079731312
B12: Present Value (PV) of Investment Costs (Millions USD) | C12: =Costs!H19/10^6 -> 11.49233285 | E12: =C12*(99.991/106.442) -> 10.7958311 | K12: Consump. >=$2/day and <$4/day | L12: =G33 -> 0.1629060054 | M12: 0.3039033003
B13: Present Value (PV) of Benefit Stream (Millions USD) | C13: =PV_ben/10^6 -> 6.499602386 | E13: 6.10568894 | K13: Consump. >$4/day | L13: =H33 -> 0.1885067963 | M13: 0.3582622981
E14: Consumption per day (2005 PPP $)
B15: Beneficiaries | C15: Total | E15: < $1.25 | F15: < $2 1 | G15: $2-$4 | H15: > $4
K16: National Poverty Statistics
B17: Beneficiary Households in Year 20 (#) | C17: =Beneficiaries!AG13 -> 15193.67149 | K17: Poverty Category | L17: % of National HH | M17: Avg. HH Size | N17: % of Population | O17: 2030 Est. Pop | P17: Mean Daily Income/Capita | Q17: Total Income/Group | R17: Income Share/Group
B18: Beneficiary Individuals in Year 20 (#) | C18: =Beneficiaries!AG8 -> 59255.31882 | K18: <$1.25 / day | L18: 0.2801 | M18: 5.873727 | N18: =(L18*M18)/SUMPRODUCT(L$18:L$21,M$18:M$21) -> 0.3371463431 | O18: =N18*Beneficiaries!$AG$6 -> 24468787.33 | P18: 0.8848324 | Q18: =O18*P18 -> 21650775.82 | R18: =Q18/SUM(Q$18:Q$21) -> 0.1298612704
B19: National Population in Year 20 2 (#) | C19: =Beneficiaries!AG6 -> 72576161.16 | K19: $1.25 - $1.99 / day | L19: 0.2661 | M19: 5.506641 | N19: =(L19*M19)/SUMPRODUCT(L$18:L$21,M$18:M$21) -> 0.3002778002 | O19: =N19*Beneficiaries!$AG$6 -> 21793010.02 | P19: 1.59105 | Q19: =O19*P19 -> 34673768.59 | R19: =Q19/SUM(Q$18:Q$21) -> 0.2079731312
K20: $2 - $4 / day | L20: 0.2744 | M20: 4.506351 | N20: =(L20*M20)/SUMPRODUCT(L$18:L$21,M$18:M$21) -> 0.2533965572 | O20: =N20*Beneficiaries!$AG$6 -> 18390549.37 | P20: 2.755082 | Q20: 50667471.55 | R20: =Q20/SUM(Q$18:Q$21) -> 0.3039033003
B21: Beneficiary Population by Poverty Level 3 (%) | E21: =N26 -> 0.1240056224 | F21: =N30 -> 0.429213462 | G21: =N28 -> 0.4007214415 | H21: =N29 -> 0.1700650965 | K21: >$4 / day | L21: 0.1793 | M21: 2.97145 | N21: =(L21*M21)/SUMPRODUCT(L$18:L$21,M$18:M$21) -> 0.1091792995 | O21: =N21*Beneficiaries!$AG$6 -> 7923814.435 | P21: 7.538078 | Q21: 59730331.27 | R21: =Q21/SUM(Q$18:Q$21) -> 0.3582622981
B22: National Population by Poverty Level 3 (%) | E22: =N18 -> 0.3371463431 | F22: =N22 -> 0.6374241433 | G22: =N20 -> 0.2533965572 | H22: =N21 -> 0.1091792995 | K22: < $2.00 / day | L22: =L18+L19 -> 0.5462 | M22: 5.701308 | N22: =N18+N19 -> 0.6374241433 | O22: =N22*Beneficiaries!$AG$6 -> 46261797.35 | P22: 1.206834 | Q22: =O22*P22 -> 55830309.94 | R22: =R18+R19 -> 0.3378344016
B24: The Magnitude of the Benefits5 | K24: Beneficiary Poverty Statistics
B25: PV of Benefit Stream Per Beneficiary (2013 US$) | C25: =(C13*10^6)/C18 -> 109.688084 | E25: =C25*S26 -> 4.763270029 | F25: =C25*S30 -> 22.34830384 | G25: =C25*S28 -> 40.48849281 | H25: =C25*S29 -> 46.8512873 | K25: Poverty Category | L25: % of Beneficiary HH | M25: Avg. HH Size | N25: % of Ben. Pop. | O25: 2030 Est. Ben. | P25: Mean Daily Income/Capita | Q25: Total Income/Group | R25: Income Share/Group | S25: Total Benefits by Pov Group | T25: % female
B26: PV of Benefit Stream Per Beneficiary (2005 PPP $) | C26: =E13*10^6/C18 -> 103.0403525 | E26: =C26*S26 -> 4.474588353 | F26: =C26*S30 -> 20.99386755 | G26: =C26*S28 -> 38.03465628 | H26: =C26*S29 -> 44.01182868 | K26: <$1.25 / day | L26: 0.1005 | M26: 5.453444 | N26: =(L26*M26)/SUMPRODUCT(L$26:L$29,M$26:M$29) -> 0.1240056224 | O26: =N26*Beneficiaries!$AG$8 -> 7347.992691 | P26: 1.052943 | Q26: =O26*P26 -> 7737.017468 | R26: =Q26/SUM(Q$28:Q$30) -> 0.04342559243 | S26: =R26 -> 0.04342559243 | T26: =Beneficiaries!E19 -> 0.5057065334
B27: PV of Benefit Stream as Share of Annual Consumption (%) | C27: =C25/(3.452294*365) -> 0.08704800301 | E27: =E26/(P26*365) -> 0.01164274436 | F27: =F26/(P30*365) -> 0.03984460837 | G27: =G26/(P28*365) -> 0.03762327233 | H27: =H26/(P29*365) -> 0.01596721507 | K27: $1.25 - $1.99 / day | L27: 0.2889 | M27: 4.669213 | N27: =(L27*M27)/SUMPRODUCT(L$26:L$29,M$26:M$29) -> 0.3052078396 | O27: =N27*Beneficiaries!$AG$8 -> 18085.18784 | P27: 1.579387 | Q27: =O27*P27 -> 28563.51057 | R27: =Q27/SUM(Q$26:Q$29) -> 0.1603185431 | S27: =R27 -> 0.1603185431
K28: $2 - $4 / day | L28: 0.3599 | M28: 4.921033 | N28: 0.4007214415 | O28: =N28*Beneficiaries!$AG$8 -> 23744.87677 | P28: 2.769683 | Q28: 65765.78154 | R28: 0.3691238952 | S28: 0.3691238952
B29: Cost Effectiveness | K29: >$4 / day | L29: 0.2507 | M29: 2.998171 | N29: 0.1700650965 | O29: =N29*Beneficiaries!$AG$8 -> 10077.26152 | P29: 7.551746 | Q29: 76100.91934 | R29: 0.4271319693 | S29: 0.4271319693
K30: < $2.00 / day | L30: =L26+L27 -> 0.3894 | M30: 4.871574 | N30: =N26+N27 -> 0.429213462 | O30: =N30*Beneficiaries!$AG$8 -> 25433.18053 | P30: 1.443544 | Q30: =Q26+Q27 -> 36300.52804 | R30: 0.2037441355 | S30: 0.2037441355
B32: PV of Benefit Stream/PV of All Costs | C32: =(C13*10^6)/PV_cost -> 0.5475744521
B33: PV of Benefit Stream/MCC Costs | C33: =C13/C10 -> 0.4413315084 | E33: =C33*S26 -> 0.01916508221 | F33: =C33*S30 -> 0.08991870666 | G33: =C33*S28 -> 0.1629060054 | H33: =C33*S29 -> 0.1885067963
B36: Percent of Project Participants Who Are Female6 | C36: =T26 -> 0.5057065334
B38: Average Annual Consumption of Beneficiaries (2005 PPP $) | C38: =2.778978*365 -> 1014.32697
B39: National Average Income per capita 4 (2005 PPP $) | C39: =2.778978*365 -> 1014.32697
B41: National Population (2013) | C41: 46142003.92
B43: NB: PV of benefits based on 10% discount rate, exclude MCC costs, and include local costs
B44: NB: Beneficiaries for this project are defined as all residents of Mafia Island
B45: 1 The beneficiaries and population living on less than $2 per day include those under $1.25 per day
B46: 2 Based on 2012 Tanzania Census counts, using the intercensal growth rate (2002-2012) to project to 2030.
B47: 3 Based on MCC calculations using the 2010-11 Tanzania Panel Survey.
B48: 4 Based on MCC calculations using the 2010-11 Tanzania Panel Survey.
B49: 5 The distribution of benefits is based on current distribution of income.
B50: 6 Based on 2012 Tanzania Census data.

Sheet References
B1: Tanzania: Mafia Island Airport | D1: Last updated: 8/27/2014
B2: References
B5: Aircraft Cost Calculator (2014). Cessna Caravan EX Report. Mequon, WI. https://www.aircraftcostcalculator.com/media/145737/acc_report_cessna_caravan_operating_costs.pdf. Accessed 8/14/14.
B6: Busalama, Abel (2012). Mafia Island Airport Upgrade Performance Evaluation Baseline Report. Submitted to MCA-Tanzania October 2012.
B7: Coastal Aviation. http://www.coastal.co.tz/
B8: Controller.com. 2014 Cessna Grand Caravan EX - new. http://www.controller.com/listingsdetail/aircraft-for-sale/CESSNA-GRAND-CARAVAN-EX/2013-CESSNA-GRAND-CARAVAN-EX/1278093.htm. Accessed 8/13/14.
B9: International Civil Aviation Organization (2013). Africa Civil Aviation Policy. AU/TPT/EXP/2A2 (II). Second Session of the Africa Union Conference of Ministers Responsible for Transport.
B10: InterVISTAS Consulting Inc. (2007). Estimating Air Travel Demand Elasticities. Produced for IATA. https://www.iata.org/whatwedo/Documents/economics/Intervistas_Elasticity_Study_2007.pdf
B11: McCreary, Iain (2010). Runway Safety: FOD, Birds, and the Case for Automated Scanning. Washington, DC: Insight SRI.
B12: Tanzania Civil Aviation Authority (2008). Annual Report for the Year 2006/2007.
B13: Tanzania National Bureau of Statistics (2013). 2012 Population and Housing Census: Population Distribution by Administrative Areas. Dar es Salaam, Tanzania.
B14: UK Civil Aviation Authority (2013). Global Fatal Accident Review, 2002 to 2011. CAP 1036. Norwich, UK.
